Date of Transaction,Department,Beneficiary,Amount,Summary of Purpose,Merchant Category
09-Jul-19,Early Education,AMZNMktplace,8.59,MISCELLANEOUS AND SPECIALTY RETAIL STORES,GENERAL RETAIL AND WHOLESALE
10-Jul-19,Early Education,AMZNMktplace,12.26,MISCELLANEOUS AND SPECIALTY RETAIL STORES,GENERAL RETAIL AND WHOLESALE
11-Jul-19,Early Education,AMZNMktplace,97.68,MISCELLANEOUS AND SPECIALTY RETAIL STORES,GENERAL RETAIL AND WHOLESALE
13-Jul-19,Early Education,AMZNMktplace,23.55,MISCELLANEOUS AND SPECIALTY RETAIL STORES,GENERAL RETAIL AND WHOLESALE
15-Jul-19,Early Education,JS ONLINE GROCERY,42.07,"GROCERY STORES, SUPERMARKETS",GENERAL RETAIL AND WHOLESALE
22-Jul-19,Early Education,JS ONLINE GROCERY,129.44,"GROCERY STORES, SUPERMARKETS",GENERAL RETAIL AND WHOLESALE
05-Aug-19,Early Education,JS ONLINE GROCERY,76.66,"GROCERY STORES, SUPERMARKETS",GENERAL RETAIL AND WHOLESALE
04-Jul-19,Community Protection,MILK&MORE,7.62,DAIRY PRODUCTS STORES,CATERING AND CATERING SUPPLIES
05-Jul-19,Community Protection,CURRYS ONLINE,399,ELECTRONIC SALES,GENERAL RETAIL AND WHOLESALE
06-Jul-19,Community Protection,AMZNMktplace,14.97,MISCELLANEOUS AND SPECIALTY RETAIL STORES,GENERAL RETAIL AND WHOLESALE
06-Jul-19,Community Protection,AMAZON.CO.UK*M68PC79F4 AM,9.98,MISCELLANEOUS AND SPECIALTY RETAIL STORES,GENERAL RETAIL AND WHOLESALE
07-Jul-19,Community Protection,AMAZON.CO.UK*M66H339B4 AM,38.25,MISCELLANEOUS AND SPECIALTY RETAIL STORES,GENERAL RETAIL AND WHOLESALE
08-Jul-19,Community Protection,AMAZON.CO.UK*M63J67UP4 AM,23.49,MISCELLANEOUS AND SPECIALTY RETAIL STORES,GENERAL RETAIL AND WHOLESALE
09-Jul-19,Community Protection,AMZNMktplace,6.08,MISCELLANEOUS AND SPECIALTY RETAIL STORES,GENERAL RETAIL AND WHOLESALE
11-Jul-19,Community Protection,MILK&MORE,7.62,DAIRY PRODUCTS STORES,CATERING AND CATERING SUPPLIES
16-Jul-19,Community Protection,TORCH DIRECT LTD,42.95,MISCELLANEOUS GENERAL MERCHANDISE,GENERAL RETAIL AND WHOLESALE
17-Jul-19,Community Protection,SHOPFITTING WAREHOUSE,342.4,OFFICE AND COMMERCIAL FURNITURE,OFFICE STATIONERY EQUIPMENT AND SUPPLIES
17-Jul-19,Community Protection,SHOPFITTING WAREHOUSE,28.8,OFFICE AND COMMERCIAL FURNITURE,OFFICE STATIONERY EQUIPMENT AND SUPPLIES
18-Jul-19,Community Protection,MILK&MORE,7.62,DAIRY PRODUCTS STORES,CATERING AND CATERING SUPPLIES
24-Jul-19,Community Protection,Trainline.com,92.75,PASSENGER RAILWAYS,TRAVEL
24-Jul-19,Community Protection,WOMENSFARMANDGARDEN,28,"ORGANIZATIONS, CHARITABLE AND SOCIAL SERVICES",CLUBS/ASSOCIATIONS/ORGANISATIONS
25-Jul-19,Community Protection,AMZNMktplace,109.97,MISCELLANEOUS AND SPECIALTY RETAIL STORES,GENERAL RETAIL AND WHOLESALE
25-Jul-19,Community Protection,PAYPAL *EVENTSINDUS,30,PROFESSIONAL SERVICES-NOT ELSEWHERE CLASSIFIED,PROFESSIONAL SERVICES
24-Jul-19,Community Protection,PREMIER INN 44536370,128,PREMIER TRAVEL INN,HOTELS AND ACCOMMODATION
25-Jul-19,Community Protection,WWW.GWR.COM,24.8,PASSENGER RAILWAYS,TRAVEL
25-Jul-19,Community Protection,MILK&MORE,7.62,DAIRY PRODUCTS STORES,CATERING AND CATERING SUPPLIES
26-Jul-19,Community Protection,WWW.DEVON.GOV.UK,35,"COLLEGES, UNIV, PRO SCHOOLS, JUNIOR COLLEGES",TRAINING AND EDUCATIONAL
26-Jul-19,Community Protection,Amazon.co.uk*MH9BQ51Y4,54.97,DIRECT MARKETING-OTHER DIRECT MARKETERS/NOT ELSEW.,MAIL ORDER / DIRECT SELLING
01-Aug-19,Community Protection,AMZNMKTPLACE AMAZON.CO.UK,22.99,MISCELLANEOUS AND SPECIALTY RETAIL STORES,GENERAL RETAIL AND WHOLESALE
01-Aug-19,Community Protection,WWW.3WMLTD.COM,361.3,BUSINESS SERVICES-NOT ELSEWHERE CLASSIFIED,MISCELLANEOUS INDUSTRIAL/COMMERCIAL SUPPLIES
01-Aug-19,Community Protection,MILK&MORE,7.62,DAIRY PRODUCTS STORES,CATERING AND CATERING SUPPLIES
01-Aug-19,Community Protection,LEIC CITY COUNCIL,12,GOVERNMENT SERVICES-NOT ELSEWHERE CLASSIFIED,STATUTORY BODIES
02-Aug-19,Community Protection,LEIC CITY COUNCIL,-11,GOVERNMENT SERVICES-NOT ELSEWHERE CLASSIFIED,STATUTORY BODIES
12-Jul-19,Business Services,TAUNTON DEANE,5.5,AUTOMOBILE PARKING LOTS AND GARAGES,TRAVEL
23-Jul-19,Business Services,EBAY EUROPE SARL,39.58,BUSINESS SERVICES-NOT ELSEWHERE CLASSIFIED,MISCELLANEOUS INDUSTRIAL/COMMERCIAL SUPPLIES
23-Jul-19,Business Services,ROYAL YACHTING ASSOC L,34.5,BUSINESS SERVICES-NOT ELSEWHERE CLASSIFIED,MISCELLANEOUS INDUSTRIAL/COMMERCIAL SUPPLIES
24-Jul-19,Business Services,WWW.THEBARCODEWAREHOUS,772.38,HOUSEHOLD APPLIANCE STORES,GENERAL RETAIL AND WHOLESALE
30-Jul-19,Business Services,WESTEXE FORKLIFT LTD,830.4,MISC/AUTO/AIRCRAFT/FARM EQUIP  NOT ELSEWHERE CLASS,VEHICLES SERVICING AND SPARES
05-Aug-19,Business Services,TORBAY BUSINESS FORUM,12.5,"ORGANIZATIONS, MEMBERSHIP-NOT ELSEWHERE CLASSIFIED",CLUBS/ASSOCIATIONS/ORGANISATIONS
16-Jul-19,Print & Post Room,WWW.BINDINGSTORE.CO.UK,98.4,ELECTRICAL PARTS AND EQUIPMENT,BUILDING MATERIALS
16-Jul-19,Print & Post Room,ASHGROVE TRADING,200.57,"OFFICE, SCHOOL SUPPLY, AND STATIONERY STORES",OFFICE STATIONERY EQUIPMENT AND SUPPLIES
10-Jul-19,Legal Services,TESCO STORES 5910,8.6,"GROCERY STORES, SUPERMARKETS",GENERAL RETAIL AND WHOLESALE
19-Jul-19,Legal Services,POST OFFICE COUNTER,7.4,POSTAL SERVICES-GOVERNMENT ONLY,MAIL AND COURIER SERVICES
19-Jul-19,Legal Services,WWW.SOURCEFORSEARCHES.CO,24,PROFESSIONAL SERVICES-NOT ELSEWHERE CLASSIFIED,PROFESSIONAL SERVICES
19-Jul-19,Legal Services,MBL SEMINARS,300,SCHOOLS AND  EDUCATIONAL SVC-NOT ELSEWHERE CLASSIFIED,TRAINING AND EDUCATIONAL
29-Jul-19,Legal Services,WILKO RETAIL LIMIT,8.75,HOUSEHOLD APPLIANCE STORES,GENERAL RETAIL AND WHOLESALE
31-Jul-19,Legal Services,TESCO STORES 5910,4.2,"GROCERY STORES, SUPERMARKETS",GENERAL RETAIL AND WHOLESALE
01-Aug-19,Legal Services,POST OFFICE COUNTER,21.8,POSTAL SERVICES-GOVERNMENT ONLY,MAIL AND COURIER SERVICES
05-Aug-19,Legal Services,BT CONFERENCING,206.4,TELECOM INCL PREPAID/RECURRING PHONE SVCS,TELECOMMUNICATION SERVICES
05-Aug-19,Legal Services,Amazon.co.uk*MH6XQ38G4,30.99,DIRECT MARKETING-OTHER DIRECT MARKETERS/NOT ELSEW.,MAIL ORDER / DIRECT SELLING
05-Aug-19,Legal Services,AMAZON.CO.UK*MH7XC78E4 AM,60.95,MISCELLANEOUS AND SPECIALTY RETAIL STORES,GENERAL RETAIL AND WHOLESALE
05-Jul-19,Financial Services inc Debtors Creditors and internal audit,WWW.GWR.COM,389,PASSENGER RAILWAYS,TRAVEL
22-Jul-19,Financial Services inc Debtors Creditors and internal audit,Trainline.com,131.9,PASSENGER RAILWAYS,TRAVEL
19-Jul-19,Print & Post Room,CRAIGMOREONLINE LTD,27.39,"COMMERCIAL EQUIPMENT, NOT ELSEWHERE CLASSIFIED",MISCELLANEOUS INDUSTRIAL/COMMERCIAL SUPPLIES
23-Jul-19,Print & Post Room,WWW.EUROPE-SUBSTANCE.C,291.54,MISCELLANEOUS AND SPECIALTY RETAIL STORES,GENERAL RETAIL AND WHOLESALE
25-Jul-19,Print & Post Room,WWW.SOUTHWESTSUPPLIES.CO,15.17,"CONTRACTORS,SPECIAL TRADE-NOT ELSEWHERE CLASSIFIED",BUILDING SERVICES
09-Jul-19,Local Transport Plan - strategic transport,WWW.CHERWELLGUESTHOUSE,220,"LODGING-HOTELS,MOTELS,RESORTS-NOT CLASSIFIED",HOTELS AND ACCOMMODATION
09-Jul-19,Local Transport Plan - strategic transport,WWW.CHERWELLGUESTHOUSE,20,"LODGING-HOTELS,MOTELS,RESORTS-NOT CLASSIFIED",HOTELS AND ACCOMMODATION
24-Jul-19,Local Transport Plan - strategic transport,AMZNMKTPLACE AMAZON.CO.UK,49.99,MISCELLANEOUS AND SPECIALTY RETAIL STORES,GENERAL RETAIL AND WHOLESALE
01-Aug-19,Local Transport Plan - strategic transport,WWW.EAFIXINGS.CO.UK,27.42,INDUSTRIAL SUPPLIES NOT ELSEWHERE CLASSIFIED,MISCELLANEOUS INDUSTRIAL/COMMERCIAL SUPPLIES
02-Aug-19,Local Transport Plan - strategic transport,AMZNMKTPLACE AMAZON.CO.UK,38.94,MISCELLANEOUS AND SPECIALTY RETAIL STORES,GENERAL RETAIL AND WHOLESALE
12-Jul-19,Geopark,LEATSIDE SURGERY,40,"DOCTORS, (NOT ELSEWHERE CLASSIFIED)",MEDICAL SUPPLIES AND SERVICES
16-Jul-19,Geopark,WONDERTREE 1958,23.85,"EATING PLACES, RESTAURANTS",RESTAURANTS AND BARS
16-Jul-19,Geopark,PUMPKIN CAFE,2.6,"PACKAGE STORES, BEER, WINE, LIQUOR",GENERAL RETAIL AND WHOLESALE
20-Jul-19,Geopark,M&S SIMPLY FOOD - SSP,9.35,"MISC FOOD STORE-CONVENIENCE,MRKT,SPLTY,VENDNG MACS",CATERING AND CATERING SUPPLIES
20-Jul-19,Geopark,Bistrot,11.72,"EATING PLACES, RESTAURANTS",RESTAURANTS AND BARS
25-Jul-19,"Community & Customer Services
",1&1 INTERNET LIMITED,7.19,COMPUTER NETWORK/INFORMATION SERVICES,MISCELLANEOUS
05-Jul-19,"Community & Customer Services
",WWW.ICCSOLUTIONS.COM,88.8,COMPUTER SOFTWARE STORES,COMPUTER EQUIPMENT & SERVICES
10-Jul-19,"Community & Customer Services
",AMZNMktplace,23.99,MISCELLANEOUS AND SPECIALTY RETAIL STORES,GENERAL RETAIL AND WHOLESALE
13-Jul-19,"Community & Customer Services
",AMZNMktplace,19.99,MISCELLANEOUS AND SPECIALTY RETAIL STORES,GENERAL RETAIL AND WHOLESALE
13-Jul-19,"Community & Customer Services
",Amazon Prime*MH3W40C14,0.99,DIRECT MARKETING-CONTINUITY/SUBSCRIPTION MERCHANTS,MAIL ORDER / DIRECT SELLING
12-Jul-19,"Community & Customer Services
",DRI DR STELLAR SOFTWARE,44.99,"COMP PROGRAMING,DATA PRCSNG,INTGRTD SYS DSGN SRVS",COMPUTER EQUIPMENT & SERVICES
14-Jul-19,"Community & Customer Services
",AMZNMktplace,69.09,MISCELLANEOUS AND SPECIALTY RETAIL STORES,GENERAL RETAIL AND WHOLESALE
14-Jul-19,"Community & Customer Services
",AMZNMktplace,20.78,MISCELLANEOUS AND SPECIALTY RETAIL STORES,GENERAL RETAIL AND WHOLESALE
14-Jul-19,"Community & Customer Services
",AMZNMktplace,9.87,MISCELLANEOUS AND SPECIALTY RETAIL STORES,GENERAL RETAIL AND WHOLESALE
14-Jul-19,"Community & Customer Services
",AMZNMktplace,2.95,MISCELLANEOUS AND SPECIALTY RETAIL STORES,GENERAL RETAIL AND WHOLESALE
15-Jul-19,"Community & Customer Services
",AMZNMktplace,6.9,MISCELLANEOUS AND SPECIALTY RETAIL STORES,GENERAL RETAIL AND WHOLESALE
18-Jul-19,"Community & Customer Services
",DMARC ANALYZER,9.52,COMPUTER SOFTWARE STORES,COMPUTER EQUIPMENT & SERVICES
20-Jul-19,"Community & Customer Services
",Amazon Prime*MH38I83X4,7.99,DIRECT MARKETING-CONTINUITY/SUBSCRIPTION MERCHANTS,MAIL ORDER / DIRECT SELLING
30-Jul-19,"Community & Customer Services
",WWW.PLOT-IT.CO.UK,"1,614.00","OFFICE, SCHOOL SUPPLY, AND STATIONERY STORES",OFFICE STATIONERY EQUIPMENT AND SUPPLIES
03-Aug-19,"Community & Customer Services
",MSFT * E01008RILM,4.5,"COMPUTERS, COMPUTER PERIPHERAL EQUIPMENT, SOFTWARE",COMPUTER EQUIPMENT & SERVICES
02-Aug-19,"Community & Customer Services
",MSFT *<E08008VWEQ>,4.5,"COMPUTERS, COMPUTER PERIPHERAL EQUIPMENT, SOFTWARE",COMPUTER EQUIPMENT & SERVICES
05-Jul-19,Financial Services inc Debtors Creditors and internal audit,PREMIER INN44028680,62,PREMIER TRAVEL INN,HOTELS AND ACCOMMODATION
04-Jul-19,Financial Services inc Debtors Creditors and internal audit,FLYBE.COM   JNG3FC,130.13,"AIR CARRIERS, AIRLINES-NOT ELSEWHERE CLASSIFIED",TRAVEL
05-Jul-19,Financial Services inc Debtors Creditors and internal audit,TRAVELODGE GB0000,75,TRAVELODGE,HOTELS AND ACCOMMODATION
05-Jul-19,Financial Services inc Debtors Creditors and internal audit,PREMIER INN44521090,102,PREMIER TRAVEL INN,HOTELS AND ACCOMMODATION
05-Jul-19,Financial Services inc Debtors Creditors and internal audit,PREMIER INN 44533960,345,PREMIER TRAVEL INN,HOTELS AND ACCOMMODATION
05-Jul-19,Financial Services inc Debtors Creditors and internal audit,PREMIER INN 44537060,91,PREMIER TRAVEL INN,HOTELS AND ACCOMMODATION
09-Jul-19,Financial Services inc Debtors Creditors and internal audit,TRAINLINE,99.3,PASSENGER RAILWAYS,TRAVEL
09-Jul-19,Financial Services inc Debtors Creditors and internal audit,TRAINLINE,104.05,PASSENGER RAILWAYS,TRAVEL
09-Jul-19,Financial Services inc Debtors Creditors and internal audit,TRAINLINE,20.75,PASSENGER RAILWAYS,TRAVEL
09-Jul-19,Financial Services inc Debtors Creditors and internal audit,TRAINLINE,69.5,PASSENGER RAILWAYS,TRAVEL
09-Jul-19,Financial Services inc Debtors Creditors and internal audit,TRAVELODGE GB0000,102,TRAVELODGE,HOTELS AND ACCOMMODATION
09-Jul-19,Financial Services inc Debtors Creditors and internal audit,TRAVELODGE GB0000,55,TRAVELODGE,HOTELS AND ACCOMMODATION
10-Jul-19,Financial Services inc Debtors Creditors and internal audit,HM PASSPORT,254,GOVERNMENT SERVICES-NOT ELSEWHERE CLASSIFIED,STATUTORY BODIES
09-Jul-19,Financial Services inc Debtors Creditors and internal audit,PREMIER INN44014075,64,PREMIER TRAVEL INN,HOTELS AND ACCOMMODATION
10-Jul-19,Financial Services inc Debtors Creditors and internal audit,GEN REGISTER OFFICE,38,GOVERNMENT SERVICES-NOT ELSEWHERE CLASSIFIED,STATUTORY BODIES
10-Jul-19,Financial Services inc Debtors Creditors and internal audit,GEN REGISTER OFFICE,14,GOVERNMENT SERVICES-NOT ELSEWHERE CLASSIFIED,STATUTORY BODIES
10-Jul-19,Financial Services inc Debtors Creditors and internal audit,GEN REGISTER OFFICE,14,GOVERNMENT SERVICES-NOT ELSEWHERE CLASSIFIED,STATUTORY BODIES
09-Jul-19,Financial Services inc Debtors Creditors and internal audit,FLYBE.COM   LCZW4H,307.13,"AIR CARRIERS, AIRLINES-NOT ELSEWHERE CLASSIFIED",TRAVEL
09-Jul-19,Financial Services inc Debtors Creditors and internal audit,FLYBE.COM   LMFX2B,159.13,"AIR CARRIERS, AIRLINES-NOT ELSEWHERE CLASSIFIED",TRAVEL
09-Jul-19,Financial Services inc Debtors Creditors and internal audit,FLYBE       KX5BCC,214.13,"AIR CARRIERS, AIRLINES-NOT ELSEWHERE CLASSIFIED",TRAVEL
10-Jul-19,Financial Services inc Debtors Creditors and internal audit,WWW.ARGOS.CO.UK,283.14,DISCOUNT STORES,GENERAL RETAIL AND WHOLESALE
10-Jul-19,Financial Services inc Debtors Creditors and internal audit,WWW.ARGOS.CO.UK,69.94,DISCOUNT STORES,GENERAL RETAIL AND WHOLESALE
11-Jul-19,Financial Services inc Debtors Creditors and internal audit,TRAINLINE,7.75,PASSENGER RAILWAYS,TRAVEL
10-Jul-19,Financial Services inc Debtors Creditors and internal audit,PREMIER INN 44536535,97,"EATING PLACES, RESTAURANTS",RESTAURANTS AND BARS
12-Jul-19,Financial Services inc Debtors Creditors and internal audit,TRAINLINE,17.65,PASSENGER RAILWAYS,TRAVEL
12-Jul-19,Financial Services inc Debtors Creditors and internal audit,TRAINLINE,17.65,PASSENGER RAILWAYS,TRAVEL
12-Jul-19,Financial Services inc Debtors Creditors and internal audit,WWW.ARGOS.CO.UK,59.99,DISCOUNT STORES,GENERAL RETAIL AND WHOLESALE
12-Jul-19,Financial Services inc Debtors Creditors and internal audit,WWW.ARGOS.CO.UK,421.42,DISCOUNT STORES,GENERAL RETAIL AND WHOLESALE
12-Jul-19,Financial Services inc Debtors Creditors and internal audit,WWW.ARGOS.CO.UK,252.95,DISCOUNT STORES,GENERAL RETAIL AND WHOLESALE
18-Jul-19,Financial Services inc Debtors Creditors and internal audit,AMZNMktplace,19.99,MISCELLANEOUS AND SPECIALTY RETAIL STORES,GENERAL RETAIL AND WHOLESALE
19-Jul-19,Financial Services inc Debtors Creditors and internal audit,TORBAY COUNCIL - WEB,11,GOVERNMENT SERVICES-NOT ELSEWHERE CLASSIFIED,STATUTORY BODIES
19-Jul-19,Financial Services inc Debtors Creditors and internal audit,HAVEN HOLIDAYS,389,CAMPGROUNDS AND TRAILER PARKS,LEISURE ACTIVITIES
22-Jul-19,Financial Services inc Debtors Creditors and internal audit,WWW.ARGOS.CO.UK,159.99,DISCOUNT STORES,GENERAL RETAIL AND WHOLESALE
22-Jul-19,Financial Services inc Debtors Creditors and internal audit,WWW.ARGOS.CO.UK,171.95,DISCOUNT STORES,GENERAL RETAIL AND WHOLESALE
23-Jul-19,Financial Services inc Debtors Creditors and internal audit,AirHopBristolCOM,59.85,RECREATION SERVICES (NOT ELSEWHERE CLASSIFIED),LEISURE ACTIVITIES
23-Jul-19,Financial Services inc Debtors Creditors and internal audit,TORBAY COUNCIL - WEB,33,GOVERNMENT SERVICES-NOT ELSEWHERE CLASSIFIED,STATUTORY BODIES
24-Jul-19,Financial Services inc Debtors Creditors and internal audit,WWW.ARGOS.CO.UK,63.93,DISCOUNT STORES,GENERAL RETAIL AND WHOLESALE
24-Jul-19,Financial Services inc Debtors Creditors and internal audit,PREMIER INN 44536535,73,"EATING PLACES, RESTAURANTS",RESTAURANTS AND BARS
25-Jul-19,Financial Services inc Debtors Creditors and internal audit,GLOUCESTERSHIRE.GOV.UK,33,GOVERNMENT SERVICES-NOT ELSEWHERE CLASSIFIED,STATUTORY BODIES
26-Jul-19,Financial Services inc Debtors Creditors and internal audit,WILTSHIRE COUNTY C,33,GOVERNMENT SERVICES-NOT ELSEWHERE CLASSIFIED,STATUTORY BODIES
26-Jul-19,Financial Services inc Debtors Creditors and internal audit,TORBAY COUNCIL - CONNECT,-33,GOVERNMENT SERVICES-NOT ELSEWHERE CLASSIFIED,STATUTORY BODIES
29-Jul-19,Financial Services inc Debtors Creditors and internal audit,PAYPAL *CORBETTMATH,197.75,"SCHOOLS, BUSINESS AND SECRETARIAL",TRAINING AND EDUCATIONAL
29-Jul-19,Financial Services inc Debtors Creditors and internal audit,TRAINLINE,25.55,PASSENGER RAILWAYS,TRAVEL
29-Jul-19,Financial Services inc Debtors Creditors and internal audit,PAYPAL *CORBETTMATH,-17.82,"SCHOOLS, BUSINESS AND SECRETARIAL",TRAINING AND EDUCATIONAL
29-Jul-19,Financial Services inc Debtors Creditors and internal audit,PREMIER INN44010470,90,PREMIER TRAVEL INN,HOTELS AND ACCOMMODATION
29-Jul-19,Financial Services inc Debtors Creditors and internal audit,PREMIER INN44031700,81,PREMIER TRAVEL INN,HOTELS AND ACCOMMODATION
29-Jul-19,Financial Services inc Debtors Creditors and internal audit,PREMIER INN44031700,71,PREMIER TRAVEL INN,HOTELS AND ACCOMMODATION
29-Jul-19,Financial Services inc Debtors Creditors and internal audit,PREMIER INN 44536035,77,PREMIER TRAVEL INN,HOTELS AND ACCOMMODATION
29-Jul-19,Financial Services inc Debtors Creditors and internal audit,FLYBE       Q2NDMZ,72.53,"AIR CARRIERS, AIRLINES-NOT ELSEWHERE CLASSIFIED",TRAVEL
29-Jul-19,Financial Services inc Debtors Creditors and internal audit,FLYBE.COM   Q34JK4,79.6,"AIR CARRIERS, AIRLINES-NOT ELSEWHERE CLASSIFIED",TRAVEL
29-Jul-19,Financial Services inc Debtors Creditors and internal audit,FLYBE.COM   Q648HZ,134.53,"AIR CARRIERS, AIRLINES-NOT ELSEWHERE CLASSIFIED",TRAVEL
30-Jul-19,Financial Services inc Debtors Creditors and internal audit,TORBAY COUNCIL - WEB,11,GOVERNMENT SERVICES-NOT ELSEWHERE CLASSIFIED,STATUTORY BODIES
30-Jul-19,Financial Services inc Debtors Creditors and internal audit,TORBAY COUNCIL - WEB,11,GOVERNMENT SERVICES-NOT ELSEWHERE CLASSIFIED,STATUTORY BODIES
30-Jul-19,Financial Services inc Debtors Creditors and internal audit,ARGOS RETAIL GROUP,74.99,DISCOUNT STORES,GENERAL RETAIL AND WHOLESALE
30-Jul-19,Financial Services inc Debtors Creditors and internal audit,WWW.ARGOS.CO.UK,219.99,DISCOUNT STORES,GENERAL RETAIL AND WHOLESALE
30-Jul-19,Financial Services inc Debtors Creditors and internal audit,WWW.ARGOS.CO.UK,117.94,DISCOUNT STORES,GENERAL RETAIL AND WHOLESALE
30-Jul-19,Financial Services inc Debtors Creditors and internal audit,Amazon.co.uk*MH76Q1XW4,299.7,DIRECT MARKETING-OTHER DIRECT MARKETERS/NOT ELSEW.,MAIL ORDER / DIRECT SELLING
31-Jul-19,Financial Services inc Debtors Creditors and internal audit,HM PASSPORT OFFICE,49,GOVERNMENT SERVICES-NOT ELSEWHERE CLASSIFIED,STATUTORY BODIES
31-Jul-19,Financial Services inc Debtors Creditors and internal audit,HM PASSPORT OFFICE,49,GOVERNMENT SERVICES-NOT ELSEWHERE CLASSIFIED,STATUTORY BODIES
30-Jul-19,Financial Services inc Debtors Creditors and internal audit,PREMIER INN 44536685,124,PREMIER TRAVEL INN,HOTELS AND ACCOMMODATION
31-Jul-19,Financial Services inc Debtors Creditors and internal audit,TORBAY COUNCIL - WEB,33,GOVERNMENT SERVICES-NOT ELSEWHERE CLASSIFIED,STATUTORY BODIES
31-Jul-19,Financial Services inc Debtors Creditors and internal audit,WWW.ARGOS.CO.UK,349.94,DISCOUNT STORES,GENERAL RETAIL AND WHOLESALE
01-Aug-19,Financial Services inc Debtors Creditors and internal audit,TRAINLINE,129.3,PASSENGER RAILWAYS,TRAVEL
01-Aug-19,Financial Services inc Debtors Creditors and internal audit,PREMIER INN44521685,70,PREMIER TRAVEL INN,HOTELS AND ACCOMMODATION
01-Aug-19,Financial Services inc Debtors Creditors and internal audit,PREMIER INN 44534300,166,PREMIER TRAVEL INN,HOTELS AND ACCOMMODATION
05-Aug-19,Financial Services inc Debtors Creditors and internal audit,TRAINLINE,180.1,PASSENGER RAILWAYS,TRAVEL
05-Aug-19,Financial Services inc Debtors Creditors and internal audit,TRAVELODGE GB0000,45,TRAVELODGE,HOTELS AND ACCOMMODATION
05-Aug-19,Financial Services inc Debtors Creditors and internal audit,TRAINLINE,-178.6,PASSENGER RAILWAYS,TRAVEL
08-Jul-19,Financial Services - Children,MERSEYFLOW,2,"BRIDGE AND ROAD FEES, TOLLS",TRAVEL
16-Jul-19,Financial Services - Children,TRAVELODGE GB0000,78.84,TRAVELODGE,HOTELS AND ACCOMMODATION
18-Jul-19,Financial Services - Children,MOTHERCARE DIRECT-E-CO,93.95,DEPARTMENT STORES,GENERAL RETAIL AND WHOLESALE
18-Jul-19,Financial Services - Children,MOTHERCARE DIRECT-E-CO,89,DEPARTMENT STORES,GENERAL RETAIL AND WHOLESALE
18-Jul-19,Financial Services - Children,MOTHERCARE DIRECT-E-CO,139,DEPARTMENT STORES,GENERAL RETAIL AND WHOLESALE
18-Jul-19,Financial Services - Children,MOTHERCARE DIRECT-E-CO,139,DEPARTMENT STORES,GENERAL RETAIL AND WHOLESALE
18-Jul-19,Financial Services - Children,MOTHERCARE DIRECT-E-CO,89,DEPARTMENT STORES,GENERAL RETAIL AND WHOLESALE
18-Jul-19,Financial Services - Children,MOTHERCARE DIRECT-E-CO,139,DEPARTMENT STORES,GENERAL RETAIL AND WHOLESALE
18-Jul-19,Financial Services - Children,MOTHERCARE DIRECT-E-CO,89,DEPARTMENT STORES,GENERAL RETAIL AND WHOLESALE
18-Jul-19,Financial Services - Children,MOTHERCARE DIRECT-E-CO,89,DEPARTMENT STORES,GENERAL RETAIL AND WHOLESALE
18-Jul-19,Financial Services - Children,MOTHERCARE DIRECT-E-CO,139,DEPARTMENT STORES,GENERAL RETAIL AND WHOLESALE
18-Jul-19,Financial Services - Children,MOTHERCARE DIRECT-E-CO,139,DEPARTMENT STORES,GENERAL RETAIL AND WHOLESALE
05-Jul-19,TDA,AMAZON.CO.UK*M61GV8K84 AM,102.74,MISCELLANEOUS AND SPECIALTY RETAIL STORES,GENERAL RETAIL AND WHOLESALE
04-Jul-19,Housing Options,NATIONAL EXPRESS LIMITED,22.1,BUS LINES,TRAVEL
04-Jul-19,Housing Options,TRECARN HOTEL,269,"LODGING-HOTELS,MOTELS,RESORTS-NOT CLASSIFIED",HOTELS AND ACCOMMODATION
04-Jul-19,Housing Options,TRECARN HOTEL,301,"LODGING-HOTELS,MOTELS,RESORTS-NOT CLASSIFIED",HOTELS AND ACCOMMODATION
05-Jul-19,Housing Options,TRECARN HOTEL,266,"LODGING-HOTELS,MOTELS,RESORTS-NOT CLASSIFIED",HOTELS AND ACCOMMODATION
05-Jul-19,Housing Options,TRECARN HOTEL,301,"LODGING-HOTELS,MOTELS,RESORTS-NOT CLASSIFIED",HOTELS AND ACCOMMODATION
05-Jul-19,Housing Options,TRECARN HOTEL,266,"LODGING-HOTELS,MOTELS,RESORTS-NOT CLASSIFIED",HOTELS AND ACCOMMODATION
05-Jul-19,Housing Options,TRECARN HOTEL,269,"LODGING-HOTELS,MOTELS,RESORTS-NOT CLASSIFIED",HOTELS AND ACCOMMODATION
05-Jul-19,Housing Options,TRECARN HOTEL,192,"LODGING-HOTELS,MOTELS,RESORTS-NOT CLASSIFIED",HOTELS AND ACCOMMODATION
08-Jul-19,Housing Options,TRECARN HOTEL,259,"LODGING-HOTELS,MOTELS,RESORTS-NOT CLASSIFIED",HOTELS AND ACCOMMODATION
08-Jul-19,Housing Options,TRECARN HOTEL,326,"LODGING-HOTELS,MOTELS,RESORTS-NOT CLASSIFIED",HOTELS AND ACCOMMODATION
08-Jul-19,Housing Options,TRECARN HOTEL,296,"LODGING-HOTELS,MOTELS,RESORTS-NOT CLASSIFIED",HOTELS AND ACCOMMODATION
08-Jul-19,Housing Options,TRECARN HOTEL,259,"LODGING-HOTELS,MOTELS,RESORTS-NOT CLASSIFIED",HOTELS AND ACCOMMODATION
08-Jul-19,Housing Options,TRECARN HOTEL,84,"LODGING-HOTELS,MOTELS,RESORTS-NOT CLASSIFIED",HOTELS AND ACCOMMODATION
10-Jul-19,Housing Options,TRAVELODGE GB0000,96,TRAVELODGE,HOTELS AND ACCOMMODATION
09-Jul-19,Housing Options,TRECARN HOTEL,294,"LODGING-HOTELS,MOTELS,RESORTS-NOT CLASSIFIED",HOTELS AND ACCOMMODATION
09-Jul-19,Housing Options,TRECARN HOTEL,259,"LODGING-HOTELS,MOTELS,RESORTS-NOT CLASSIFIED",HOTELS AND ACCOMMODATION
10-Jul-19,Housing Options,TRECARN HOTEL,259,"LODGING-HOTELS,MOTELS,RESORTS-NOT CLASSIFIED",HOTELS AND ACCOMMODATION
10-Jul-19,Housing Options,TRECARN HOTEL,37,"LODGING-HOTELS,MOTELS,RESORTS-NOT CLASSIFIED",HOTELS AND ACCOMMODATION
10-Jul-19,Housing Options,TRECARN HOTEL,74,"LODGING-HOTELS,MOTELS,RESORTS-NOT CLASSIFIED",HOTELS AND ACCOMMODATION
10-Jul-19,Housing Options,TRECARN HOTEL,294,"LODGING-HOTELS,MOTELS,RESORTS-NOT CLASSIFIED",HOTELS AND ACCOMMODATION
12-Jul-19,Housing Options,TRAVELODGE GB0000,265,TRAVELODGE,HOTELS AND ACCOMMODATION
11-Jul-19,Housing Options,TRECARN HOTEL,259,"LODGING-HOTELS,MOTELS,RESORTS-NOT CLASSIFIED",HOTELS AND ACCOMMODATION
11-Jul-19,Housing Options,TRECARN HOTEL,294,"LODGING-HOTELS,MOTELS,RESORTS-NOT CLASSIFIED",HOTELS AND ACCOMMODATION
12-Jul-19,Housing Options,TRECARN HOTEL,259,"LODGING-HOTELS,MOTELS,RESORTS-NOT CLASSIFIED",HOTELS AND ACCOMMODATION
12-Jul-19,Housing Options,TRECARN HOTEL,259,"LODGING-HOTELS,MOTELS,RESORTS-NOT CLASSIFIED",HOTELS AND ACCOMMODATION
12-Jul-19,Housing Options,TRECARN HOTEL,272,"LODGING-HOTELS,MOTELS,RESORTS-NOT CLASSIFIED",HOTELS AND ACCOMMODATION
12-Jul-19,Housing Options,TRECARN HOTEL,252,"LODGING-HOTELS,MOTELS,RESORTS-NOT CLASSIFIED",HOTELS AND ACCOMMODATION
12-Jul-19,Housing Options,TRECARN HOTEL,259,"LODGING-HOTELS,MOTELS,RESORTS-NOT CLASSIFIED",HOTELS AND ACCOMMODATION
15-Jul-19,Housing Options,TRAVELODGE GB0000,88,TRAVELODGE,HOTELS AND ACCOMMODATION
16-Jul-19,Housing Options,TRAVELODGE GB0000,84,TRAVELODGE,HOTELS AND ACCOMMODATION
16-Jul-19,Housing Options,TRECARN HOTEL,42,"LODGING-HOTELS,MOTELS,RESORTS-NOT CLASSIFIED",HOTELS AND ACCOMMODATION
16-Jul-19,Housing Options,TRECARN HOTEL,37,"LODGING-HOTELS,MOTELS,RESORTS-NOT CLASSIFIED",HOTELS AND ACCOMMODATION
16-Jul-19,Housing Options,TRECARN HOTEL,269,"LODGING-HOTELS,MOTELS,RESORTS-NOT CLASSIFIED",HOTELS AND ACCOMMODATION
16-Jul-19,Housing Options,TRECARN HOTEL,168,"LODGING-HOTELS,MOTELS,RESORTS-NOT CLASSIFIED",HOTELS AND ACCOMMODATION
16-Jul-19,Housing Options,TRECARN HOTEL,-111,"LODGING-HOTELS,MOTELS,RESORTS-NOT CLASSIFIED",HOTELS AND ACCOMMODATION
18-Jul-19,Housing Options,Trainline.com,51.87,PASSENGER RAILWAYS,TRAVEL
18-Jul-19,Housing Options,TRAVELODGE GB0000,77,TRAVELODGE,HOTELS AND ACCOMMODATION
17-Jul-19,Housing Options,TRECARN HOTEL,266,"LODGING-HOTELS,MOTELS,RESORTS-NOT CLASSIFIED",HOTELS AND ACCOMMODATION
17-Jul-19,Housing Options,TRECARN HOTEL,266,"LODGING-HOTELS,MOTELS,RESORTS-NOT CLASSIFIED",HOTELS AND ACCOMMODATION
18-Jul-19,Housing Options,REDFUNNEL.CO.UK,10.1,CRUISE LINES,LEISURE ACTIVITIES
18-Jul-19,Housing Options,TRECARN HOTEL,309,"LODGING-HOTELS,MOTELS,RESORTS-NOT CLASSIFIED",HOTELS AND ACCOMMODATION
18-Jul-19,Housing Options,TRECARN HOTEL,163,"LODGING-HOTELS,MOTELS,RESORTS-NOT CLASSIFIED",HOTELS AND ACCOMMODATION
18-Jul-19,Housing Options,TRECARN HOTEL,266,"LODGING-HOTELS,MOTELS,RESORTS-NOT CLASSIFIED",HOTELS AND ACCOMMODATION
18-Jul-19,Housing Options,TRECARN HOTEL,301,"LODGING-HOTELS,MOTELS,RESORTS-NOT CLASSIFIED",HOTELS AND ACCOMMODATION
19-Jul-19,Housing Options,TRECARN HOTEL,274,"LODGING-HOTELS,MOTELS,RESORTS-NOT CLASSIFIED",HOTELS AND ACCOMMODATION
19-Jul-19,Housing Options,TRECARN HOTEL,274,"LODGING-HOTELS,MOTELS,RESORTS-NOT CLASSIFIED",HOTELS AND ACCOMMODATION
19-Jul-19,Housing Options,TRECARN HOTEL,283,"LODGING-HOTELS,MOTELS,RESORTS-NOT CLASSIFIED",HOTELS AND ACCOMMODATION
22-Jul-19,Housing Options,TRECARN HOTEL,74,"LODGING-HOTELS,MOTELS,RESORTS-NOT CLASSIFIED",HOTELS AND ACCOMMODATION
22-Jul-19,Housing Options,TRECARN HOTEL,274,"LODGING-HOTELS,MOTELS,RESORTS-NOT CLASSIFIED",HOTELS AND ACCOMMODATION
22-Jul-19,Housing Options,TRECARN HOTEL,274,"LODGING-HOTELS,MOTELS,RESORTS-NOT CLASSIFIED",HOTELS AND ACCOMMODATION
24-Jul-19,Housing Options,TRECARN HOTEL,274,"LODGING-HOTELS,MOTELS,RESORTS-NOT CLASSIFIED",HOTELS AND ACCOMMODATION
24-Jul-19,Housing Options,TRECARN HOTEL,274,"LODGING-HOTELS,MOTELS,RESORTS-NOT CLASSIFIED",HOTELS AND ACCOMMODATION
25-Jul-19,Housing Options,TRECARN HOTEL,309,"LODGING-HOTELS,MOTELS,RESORTS-NOT CLASSIFIED",HOTELS AND ACCOMMODATION
25-Jul-19,Housing Options,TRECARN HOTEL,309,"LODGING-HOTELS,MOTELS,RESORTS-NOT CLASSIFIED",HOTELS AND ACCOMMODATION
26-Jul-19,Housing Options,NATIONAL EXPRESS LIMITED,13.7,BUS LINES,TRAVEL
26-Jul-19,Housing Options,TRECARN HOTEL,237,"LODGING-HOTELS,MOTELS,RESORTS-NOT CLASSIFIED",HOTELS AND ACCOMMODATION
26-Jul-19,Housing Options,TRECARN HOTEL,274,"LODGING-HOTELS,MOTELS,RESORTS-NOT CLASSIFIED",HOTELS AND ACCOMMODATION
26-Jul-19,Housing Options,TRECARN HOTEL,274,"LODGING-HOTELS,MOTELS,RESORTS-NOT CLASSIFIED",HOTELS AND ACCOMMODATION
29-Jul-19,Housing Options,TRAVELODGE GB0000,186,TRAVELODGE,HOTELS AND ACCOMMODATION
29-Jul-19,Housing Options,BOOKING.COM,282,"LODGING-HOTELS,MOTELS,RESORTS-NOT CLASSIFIED",HOTELS AND ACCOMMODATION
29-Jul-19,Housing Options,BOOKING.COM,-282,"LODGING-HOTELS,MOTELS,RESORTS-NOT CLASSIFIED",HOTELS AND ACCOMMODATION
30-Jul-19,Housing Options,Trainline.com,42.71,PASSENGER RAILWAYS,TRAVEL
30-Jul-19,Housing Options,TOR2 LTD,48,GOVERNMENT SERVICES-NOT ELSEWHERE CLASSIFIED,STATUTORY BODIES
29-Jul-19,Housing Options,TRECARN HOTEL,317,"LODGING-HOTELS,MOTELS,RESORTS-NOT CLASSIFIED",HOTELS AND ACCOMMODATION
29-Jul-19,Housing Options,TRECARN HOTEL,317,"LODGING-HOTELS,MOTELS,RESORTS-NOT CLASSIFIED",HOTELS AND ACCOMMODATION
29-Jul-19,Housing Options,TRECARN HOTEL,-42,"LODGING-HOTELS,MOTELS,RESORTS-NOT CLASSIFIED",HOTELS AND ACCOMMODATION
31-Jul-19,Housing Options,TRAVELODGE GB0000,647,TRAVELODGE,HOTELS AND ACCOMMODATION
31-Jul-19,Housing Options,TRECARN HOTEL,304,"LODGING-HOTELS,MOTELS,RESORTS-NOT CLASSIFIED",HOTELS AND ACCOMMODATION
31-Jul-19,Housing Options,TRECARN HOTEL,304,"LODGING-HOTELS,MOTELS,RESORTS-NOT CLASSIFIED",HOTELS AND ACCOMMODATION
31-Jul-19,Housing Options,TRECARN HOTEL,306,"LODGING-HOTELS,MOTELS,RESORTS-NOT CLASSIFIED",HOTELS AND ACCOMMODATION
02-Aug-19,Housing Options,TRAVELODGE GB0000,291,TRAVELODGE,HOTELS AND ACCOMMODATION
01-Aug-19,Housing Options,TRECARN HOTEL,326,"LODGING-HOTELS,MOTELS,RESORTS-NOT CLASSIFIED",HOTELS AND ACCOMMODATION
01-Aug-19,Housing Options,TRECARN HOTEL,346,"LODGING-HOTELS,MOTELS,RESORTS-NOT CLASSIFIED",HOTELS AND ACCOMMODATION
02-Aug-19,Housing Options,TRECARN HOTEL,316,"LODGING-HOTELS,MOTELS,RESORTS-NOT CLASSIFIED",HOTELS AND ACCOMMODATION
02-Aug-19,Housing Options,TRECARN HOTEL,316,"LODGING-HOTELS,MOTELS,RESORTS-NOT CLASSIFIED",HOTELS AND ACCOMMODATION
02-Aug-19,Housing Options,TRECARN HOTEL,311,"LODGING-HOTELS,MOTELS,RESORTS-NOT CLASSIFIED",HOTELS AND ACCOMMODATION
05-Aug-19,Housing Options,TRAVELODGE GB0000,73,TRAVELODGE,HOTELS AND ACCOMMODATION
05-Aug-19,Community Protection,TERRAQUEST SOLUTIONS LTD,34.2,"COMPUTERS, COMPUTER PERIPHERAL EQUIPMENT, SOFTWARE",COMPUTER EQUIPMENT & SERVICES
04-Jul-19,Financial Services - Children,PREMIER INN44533980,201,"EATING PLACES, RESTAURANTS",RESTAURANTS AND BARS
05-Jul-19,Financial Services - Children,TORBAY COUNCIL - WEB,33,GOVERNMENT SERVICES-NOT ELSEWHERE CLASSIFIED,STATUTORY BODIES
05-Jul-19,Financial Services - Children,PREMIER INN 44536035,74,PREMIER TRAVEL INN,HOTELS AND ACCOMMODATION
04-Jul-19,Financial Services - Children,PREMIER INN44514505,-224,PREMIER TRAVEL INN,HOTELS AND ACCOMMODATION
08-Jul-19,Financial Services - Children,TRAINLINE,85.5,PASSENGER RAILWAYS,TRAVEL
08-Jul-19,Financial Services - Children,GEN REGISTER OFFICE,108,GOVERNMENT SERVICES-NOT ELSEWHERE CLASSIFIED,STATUTORY BODIES
10-Jul-19,Financial Services - Children,GEN REGISTER OFFICE,80.25,GOVERNMENT SERVICES-NOT ELSEWHERE CLASSIFIED,STATUTORY BODIES
08-Jul-19,Financial Services - Children,GEN REGISTER OFFICE,-101.5,GOVERNMENT SERVICES-NOT ELSEWHERE CLASSIFIED,STATUTORY BODIES
11-Jul-19,Financial Services - Children,TRAVELODGE GB0000,129.98,TRAVELODGE,HOTELS AND ACCOMMODATION
12-Jul-19,Financial Services - Children,AMZNMKTPLACE AMAZON.CO.UK,36.27,MISCELLANEOUS AND SPECIALTY RETAIL STORES,GENERAL RETAIL AND WHOLESALE
12-Jul-19,Financial Services - Children,HM PASSPORT OFFICE,75.5,GOVERNMENT SERVICES-NOT ELSEWHERE CLASSIFIED,STATUTORY BODIES
12-Jul-19,Financial Services - Children,HM PASSPORT OFFICE,75.5,GOVERNMENT SERVICES-NOT ELSEWHERE CLASSIFIED,STATUTORY BODIES
12-Jul-19,Financial Services - Children,HM PASSPORT OFFICE,49,GOVERNMENT SERVICES-NOT ELSEWHERE CLASSIFIED,STATUTORY BODIES
12-Jul-19,Financial Services - Children,PREMIER INN44024405,148,PREMIER TRAVEL INN,HOTELS AND ACCOMMODATION
12-Jul-19,Financial Services - Children,PREMIER INN44521665,63,PREMIER TRAVEL INN,HOTELS AND ACCOMMODATION
12-Jul-19,Financial Services - Children,PREMIER INN44015515,-124,PREMIER TRAVEL INN,HOTELS AND ACCOMMODATION
12-Jul-19,Financial Services - Children,PREMIER INN44015515,-118,PREMIER TRAVEL INN,HOTELS AND ACCOMMODATION
12-Jul-19,Financial Services - Children,PREMIER INN44015515,-110,PREMIER TRAVEL INN,HOTELS AND ACCOMMODATION
12-Jul-19,Financial Services - Children,PREMIER INN44015515,-103,PREMIER TRAVEL INN,HOTELS AND ACCOMMODATION
15-Jul-19,Financial Services - Children,EMS WASTE SERVICES LIM,330,BUSINESS SERVICES-NOT ELSEWHERE CLASSIFIED,MISCELLANEOUS INDUSTRIAL/COMMERCIAL SUPPLIES
15-Jul-19,Financial Services - Children,WWW.ARGOS.CO.UK,253.94,DISCOUNT STORES,GENERAL RETAIL AND WHOLESALE
15-Jul-19,Financial Services - Children,WWW.ARGOS.CO.UK,444.98,DISCOUNT STORES,GENERAL RETAIL AND WHOLESALE
15-Jul-19,Financial Services - Children,WWW.ARGOS.CO.UK,248.92,DISCOUNT STORES,GENERAL RETAIL AND WHOLESALE
21-Jun-19,Financial Services - Children,GEN REGISTER OFFICE,-7.5,GOVERNMENT SERVICES-NOT ELSEWHERE CLASSIFIED,STATUTORY BODIES
17-Jul-19,Financial Services - Children,SOMERSET COUNTY COUNCI,22,GOVERNMENT SERVICES-NOT ELSEWHERE CLASSIFIED,STATUTORY BODIES
17-Jul-19,Financial Services - Children,SOMERSET COUNTY COUNCI,22,GOVERNMENT SERVICES-NOT ELSEWHERE CLASSIFIED,STATUTORY BODIES
17-Jul-19,Financial Services - Children,TORBAY COUNCIL - WEB,22,GOVERNMENT SERVICES-NOT ELSEWHERE CLASSIFIED,STATUTORY BODIES
17-Jul-19,Financial Services - Children,WWW.ARGOS.CO.UK,35,DISCOUNT STORES,GENERAL RETAIL AND WHOLESALE
17-Jul-19,Financial Services - Children,WWW.ARGOS.CO.UK,43.95,DISCOUNT STORES,GENERAL RETAIL AND WHOLESALE
17-Jul-19,Financial Services - Children,TRAVELODGE GB0000,59,TRAVELODGE,HOTELS AND ACCOMMODATION
18-Jul-19,Financial Services - Children,WWW.ARGOS.CO.UK,53.93,DISCOUNT STORES,GENERAL RETAIL AND WHOLESALE
19-Jul-19,Financial Services - Children,AMZNMktplace,12.99,MISCELLANEOUS AND SPECIALTY RETAIL STORES,GENERAL RETAIL AND WHOLESALE
19-Jul-19,Financial Services - Children,AMZNMktplace,29.99,MISCELLANEOUS AND SPECIALTY RETAIL STORES,GENERAL RETAIL AND WHOLESALE
19-Jul-19,Financial Services - Children,AMZNMktplace,12.99,MISCELLANEOUS AND SPECIALTY RETAIL STORES,GENERAL RETAIL AND WHOLESALE
19-Jul-19,Financial Services - Children,AMZNMktplace,52.46,MISCELLANEOUS AND SPECIALTY RETAIL STORES,GENERAL RETAIL AND WHOLESALE
19-Jul-19,Financial Services - Children,HM PASSPORT OFFICE,49,GOVERNMENT SERVICES-NOT ELSEWHERE CLASSIFIED,STATUTORY BODIES
19-Jul-19,Financial Services - Children,TRAINLINE,104.05,PASSENGER RAILWAYS,TRAVEL
19-Jul-19,Financial Services - Children,TRAINLINE,270.05,PASSENGER RAILWAYS,TRAVEL
19-Jul-19,Financial Services - Children,TRAVELODGE GB0000,57.6,TRAVELODGE,HOTELS AND ACCOMMODATION
19-Jul-19,Financial Services - Children,PREMIER INN44024405,190,PREMIER TRAVEL INN,HOTELS AND ACCOMMODATION
19-Jul-19,Financial Services - Children,PREMIER INN44024405,198,PREMIER TRAVEL INN,HOTELS AND ACCOMMODATION
19-Jul-19,Financial Services - Children,PREMIER INN44024405,173,PREMIER TRAVEL INN,HOTELS AND ACCOMMODATION
19-Jul-19,Financial Services - Children,PREMIER INN44024405,163,PREMIER TRAVEL INN,HOTELS AND ACCOMMODATION
19-Jul-19,Financial Services - Children,WWW.ARGOS.CO.UK,48.93,DISCOUNT STORES,GENERAL RETAIL AND WHOLESALE
19-Jul-19,Financial Services - Children,PREMIER INN44024405,-148,PREMIER TRAVEL INN,HOTELS AND ACCOMMODATION
22-Jul-19,Financial Services - Children,AMZNMktplace,18.5,MISCELLANEOUS AND SPECIALTY RETAIL STORES,GENERAL RETAIL AND WHOLESALE
22-Jul-19,Financial Services - Children,BEVERLEY PARKS (PAIGNTON),"1,498.00",CAMPGROUNDS AND TRAILER PARKS,LEISURE ACTIVITIES
22-Jul-19,Financial Services - Children,TRECARN HOTEL,414,"LODGING-HOTELS,MOTELS,RESORTS-NOT CLASSIFIED",HOTELS AND ACCOMMODATION
22-Jul-19,Financial Services - Children,TRECARN HOTEL,54,"LODGING-HOTELS,MOTELS,RESORTS-NOT CLASSIFIED",HOTELS AND ACCOMMODATION
24-Jul-19,Financial Services - Children,TRAVELODGE GB0000,68,TRAVELODGE,HOTELS AND ACCOMMODATION
25-Jul-19,Financial Services - Children,PREMIER INN44024405,70,PREMIER TRAVEL INN,HOTELS AND ACCOMMODATION
25-Jul-19,Financial Services - Children,FLYBE.COM   SCH5QC,89.13,"AIR CARRIERS, AIRLINES-NOT ELSEWHERE CLASSIFIED",TRAVEL
29-Jul-19,Financial Services - Children,TRAINLINE,106.95,PASSENGER RAILWAYS,TRAVEL
29-Jul-19,Financial Services - Children,BRITANNIA,236,"LODGING-HOTELS,MOTELS,RESORTS-NOT CLASSIFIED",HOTELS AND ACCOMMODATION
02-Aug-19,Financial Services - Children,TRAVELODGE GB0000,362,TRAVELODGE,HOTELS AND ACCOMMODATION
02-Aug-19,Financial Services - Children,WWW.ARGOS.CO.UK,120,DISCOUNT STORES,GENERAL RETAIL AND WHOLESALE
02-Aug-19,Financial Services - Children,PREMIER INN45927025,177,PREMIER TRAVEL INN,HOTELS AND ACCOMMODATION
02-Aug-19,Financial Services - Children,FLYBE.COM   O8VNMN,446.26,"AIR CARRIERS, AIRLINES-NOT ELSEWHERE CLASSIFIED",TRAVEL
05-Aug-19,Financial Services - Children,WWW.BRIXHAMHOLIDAYPARK.C,674,CAMPGROUNDS AND TRAILER PARKS,LEISURE ACTIVITIES
05-Aug-19,Financial Services - Children,GEN REGISTER OFFICE,80.25,GOVERNMENT SERVICES-NOT ELSEWHERE CLASSIFIED,STATUTORY BODIES
12-Jul-19,Community Safety,Hotel on Booking.com The,105,"LODGING-HOTELS,MOTELS,RESORTS-NOT CLASSIFIED",HOTELS AND ACCOMMODATION
15-Jul-19,Community Safety,TRECARN HOTEL,126,"LODGING-HOTELS,MOTELS,RESORTS-NOT CLASSIFIED",HOTELS AND ACCOMMODATION
18-Jul-19,Community Safety,TRECARN HOTEL,37,"LODGING-HOTELS,MOTELS,RESORTS-NOT CLASSIFIED",HOTELS AND ACCOMMODATION
18-Jul-19,Community Safety,TRECARN HOTEL,163,"LODGING-HOTELS,MOTELS,RESORTS-NOT CLASSIFIED",HOTELS AND ACCOMMODATION
20-Jul-19,Community Safety,TRECARN HOTEL,115,"LODGING-HOTELS,MOTELS,RESORTS-NOT CLASSIFIED",HOTELS AND ACCOMMODATION
23-Jul-19,Community Safety,WWW.GWR.COM,18.5,PASSENGER RAILWAYS,TRAVEL
22-Jul-19,Community Safety,TRECARN HOTEL,37,"LODGING-HOTELS,MOTELS,RESORTS-NOT CLASSIFIED",HOTELS AND ACCOMMODATION
22-Jul-19,Community Safety,TRECARN HOTEL,37,"LODGING-HOTELS,MOTELS,RESORTS-NOT CLASSIFIED",HOTELS AND ACCOMMODATION
23-Jul-19,Community Safety,TRECARN HOTEL,57,"LODGING-HOTELS,MOTELS,RESORTS-NOT CLASSIFIED",HOTELS AND ACCOMMODATION
24-Jul-19,Community Safety,TRECARN HOTEL,44.5,"LODGING-HOTELS,MOTELS,RESORTS-NOT CLASSIFIED",HOTELS AND ACCOMMODATION
25-Jul-19,Community Safety,Hotel on Booking.com Cast,245,"LODGING-HOTELS,MOTELS,RESORTS-NOT CLASSIFIED",HOTELS AND ACCOMMODATION
25-Jul-19,Community Safety,TRECARN HOTEL,153,"LODGING-HOTELS,MOTELS,RESORTS-NOT CLASSIFIED",HOTELS AND ACCOMMODATION
30-Jul-19,Community Safety,TRECARN HOTEL,40,"LODGING-HOTELS,MOTELS,RESORTS-NOT CLASSIFIED",HOTELS AND ACCOMMODATION
31-Jul-19,Community Safety,TRECARN HOTEL,42,"LODGING-HOTELS,MOTELS,RESORTS-NOT CLASSIFIED",HOTELS AND ACCOMMODATION
01-Aug-19,Community Safety,Hotel on Booking.com Seas,220,"LODGING-HOTELS,MOTELS,RESORTS-NOT CLASSIFIED",HOTELS AND ACCOMMODATION
05-Aug-19,Community Safety,SEASCAPE HOTEL LTD,40,"EATING PLACES, RESTAURANTS",RESTAURANTS AND BARS
10-Jul-19,Building Control,AMZNMKTPLACE AMAZON.CO.UK,73.71,MISCELLANEOUS AND SPECIALTY RETAIL STORES,GENERAL RETAIL AND WHOLESALE
11-Jul-19,Building Control,AMZNMKTPLACE AMAZON.CO.UK,67.51,MISCELLANEOUS AND SPECIALTY RETAIL STORES,GENERAL RETAIL AND WHOLESALE
17-Jul-19,Building Control,AMZNMktplace,96.17,MISCELLANEOUS AND SPECIALTY RETAIL STORES,GENERAL RETAIL AND WHOLESALE
08-Aug-19,Early Education,AMZ*MokenEye-UK,-8.59,MISCELLANEOUS AND SPECIALTY RETAIL STORES,GENERAL RETAIL AND WHOLESALE
12-Aug-19,Early Education,JS ONLINE GROCERY,88.73,"GROCERY STORES, SUPERMARKETS",GENERAL RETAIL AND WHOLESALE
19-Aug-19,Early Education,JS ONLINE GROCERY,69.45,"GROCERY STORES, SUPERMARKETS",GENERAL RETAIL AND WHOLESALE
19-Aug-19,Early Education,JS ONLINE GROCERY,-1.3,"GROCERY STORES, SUPERMARKETS",GENERAL RETAIL AND WHOLESALE
28-Aug-19,Early Education,JS ONLINE GROCERY,73.24,"GROCERY STORES, SUPERMARKETS",GENERAL RETAIL AND WHOLESALE
06-Aug-19,Community Protection,Trainline.com,42,PASSENGER RAILWAYS,TRAVEL
06-Aug-19,Community Protection,WWW.GWR.COM,23.3,PASSENGER RAILWAYS,TRAVEL
06-Aug-19,Community Protection,PREMIER INN44011210,82.5,PREMIER TRAVEL INN,HOTELS AND ACCOMMODATION
08-Aug-19,Community Protection,MILK&MORE,7.62,DAIRY PRODUCTS STORES,CATERING AND CATERING SUPPLIES
12-Aug-19,Community Protection,NCC CARD PAYMENT INTER,12,GOVERNMENT SERVICES-NOT ELSEWHERE CLASSIFIED,STATUTORY BODIES
13-Aug-19,Community Protection,AMZNMKTPLACE AMAZON.CO.UK,130.35,MISCELLANEOUS AND SPECIALTY RETAIL STORES,GENERAL RETAIL AND WHOLESALE
13-Aug-19,Community Protection,AMZNMKTPLACE AMAZON.CO.UK,109.22,MISCELLANEOUS AND SPECIALTY RETAIL STORES,GENERAL RETAIL AND WHOLESALE
13-Aug-19,Community Protection,AMZNMKTPLACE AMAZON.CO.UK,23.74,MISCELLANEOUS AND SPECIALTY RETAIL STORES,GENERAL RETAIL AND WHOLESALE
14-Aug-19,Community Protection,Amazon.co.uk*MH2ML39L4,59.98,DIRECT MARKETING-OTHER DIRECT MARKETERS/NOT ELSEW.,MAIL ORDER / DIRECT SELLING
15-Aug-19,Community Protection,MILK&MORE,7.62,DAIRY PRODUCTS STORES,CATERING AND CATERING SUPPLIES
22-Aug-19,Community Protection,MILK&MORE,7.62,DAIRY PRODUCTS STORES,CATERING AND CATERING SUPPLIES
28-Aug-19,Community Protection,ENTERPRISE  * ENTERPRISE,119.97,ENTERPRISE RENT-A-CAR,AUTO RENTAL
29-Aug-19,Community Protection,MILK&MORE,7.62,DAIRY PRODUCTS STORES,CATERING AND CATERING SUPPLIES
03-Sep-19,Community Protection,B&Q DIRECT,9.7,HOME SUPPLY WAREHOUSE STORES,GENERAL RETAIL AND WHOLESALE
04-Sep-19,Community Protection,WWW.CGPBOOKS.CO.UK,43.15,MISCELLANEOUS AND SPECIALTY RETAIL STORES,GENERAL RETAIL AND WHOLESALE
05-Sep-19,Community Protection,AMZNMktplace,130.88,MISCELLANEOUS AND SPECIALTY RETAIL STORES,GENERAL RETAIL AND WHOLESALE
05-Sep-19,Community Protection,MILK&MORE,7.62,DAIRY PRODUCTS STORES,CATERING AND CATERING SUPPLIES
17-Aug-19,Business Services,WWW.RYA.ORG.UK,60,BUSINESS SERVICES-NOT ELSEWHERE CLASSIFIED,MISCELLANEOUS INDUSTRIAL/COMMERCIAL SUPPLIES
21-Aug-19,Business Services,EASYJET     EX5W8NS,41.98,EASYJET,TRAVEL
23-Aug-19,Business Services,EBAY.CO.UK/CC,13.19,BUSINESS SERVICES-NOT ELSEWHERE CLASSIFIED,MISCELLANEOUS INDUSTRIAL/COMMERCIAL SUPPLIES
02-Sep-19,Business Services,TORBAY BUSINESS FORUM,12.5,"ORGANIZATIONS, MEMBERSHIP-NOT ELSEWHERE CLASSIFIED",CLUBS/ASSOCIATIONS/ORGANISATIONS
02-Sep-19,Business Services,STATIONERY OFFICE BOOK,10,BOOK STORES,BOOKS AND PERIODICALS
05-Sep-19,Business Services,AMZNMKTPLACE AMAZON.CO.UK,16.48,MISCELLANEOUS AND SPECIALTY RETAIL STORES,GENERAL RETAIL AND WHOLESALE
16-Aug-19,Legal Services,AMZNMktplace,32.99,MISCELLANEOUS AND SPECIALTY RETAIL STORES,GENERAL RETAIL AND WHOLESALE
16-Aug-19,Legal Services,ADOBE  CREATIVE CLOUD,596.33,COMPUTER SOFTWARE STORES,COMPUTER EQUIPMENT & SERVICES
16-Aug-19,Legal Services,ADOBE  CREATIVE CLOUD,596.33,COMPUTER SOFTWARE STORES,COMPUTER EQUIPMENT & SERVICES
18-Aug-19,Legal Services,AMZNMktplace,58.94,MISCELLANEOUS AND SPECIALTY RETAIL STORES,GENERAL RETAIL AND WHOLESALE
20-Aug-19,Legal Services,AMZNMktplace,75.99,MISCELLANEOUS AND SPECIALTY RETAIL STORES,GENERAL RETAIL AND WHOLESALE
20-Aug-19,Legal Services,AMZNMktplace,794.74,MISCELLANEOUS AND SPECIALTY RETAIL STORES,GENERAL RETAIL AND WHOLESALE
20-Aug-19,Legal Services,AMZNMktplace,93.48,MISCELLANEOUS AND SPECIALTY RETAIL STORES,GENERAL RETAIL AND WHOLESALE
20-Aug-19,Legal Services,AMZNMktplace,35.98,MISCELLANEOUS AND SPECIALTY RETAIL STORES,GENERAL RETAIL AND WHOLESALE
28-Aug-19,Legal Services,RICHARDSON HOTELS LIMITED,178,"LODGING-HOTELS,MOTELS,RESORTS-NOT CLASSIFIED",HOTELS AND ACCOMMODATION
04-Sep-19,Legal Services,CROSS COUNTRY TRAINS,68.2,PASSENGER RAILWAYS,TRAVEL
04-Sep-19,Legal Services,CROSS COUNTRY TRAINS,35.9,PASSENGER RAILWAYS,TRAVEL
04-Sep-19,Legal Services,WWW.ICO.ORG.UK,40,GOVERNMENT SERVICES-NOT ELSEWHERE CLASSIFIED,STATUTORY BODIES
04-Sep-19,Legal Services,WWW.ICO.ORG.UK,40,GOVERNMENT SERVICES-NOT ELSEWHERE CLASSIFIED,STATUTORY BODIES
28-Aug-19,Financial Services inc Debtors Creditors and internal audit,Udemy,9.99,"COMP PROGRAMING,DATA PRCSNG,INTGRTD SYS DSGN SRVS",COMPUTER EQUIPMENT & SERVICES
29-Aug-19,Financial Services inc Debtors Creditors and internal audit,COMPANIES HOUSE,13,GOVERNMENT SERVICES-NOT ELSEWHERE CLASSIFIED,STATUTORY BODIES
06-Aug-19,Print & Post Room,WWW.HSSTRAINING.COM,225.22,"EQUIPMENT RENTALAND LEASING SVS, FURNTURE/TOOL RENTAL",MISCELLANEOUS INDUSTRIAL/COMMERCIAL SUPPLIES
09-Aug-19,Print & Post Room,BEST4FRAMES,157.83,MISCELLANEOUS HOUSE FURNISHING SPECIALTY SHOPS,GENERAL RETAIL AND WHOLESALE
06-Aug-19,Local Transport Plan - strategic transport,AMZNMKTPLACE AMAZON.CO.UK,41.76,MISCELLANEOUS AND SPECIALTY RETAIL STORES,GENERAL RETAIL AND WHOLESALE
06-Aug-19,Local Transport Plan - strategic transport,AMZNMKTPLACE AMAZON.CO.UK,-38.94,MISCELLANEOUS AND SPECIALTY RETAIL STORES,GENERAL RETAIL AND WHOLESALE
04-Sep-19,Local Transport Plan - strategic transport,TRAINLINE,103.53,PASSENGER RAILWAYS,TRAVEL
24-Aug-19,Geopark,DROPBOX*T8RCX1W664Z3,95.88,COMPUTER NETWORK/INFORMATION SERVICES,MISCELLANEOUS
04-Sep-19,TORBAY COUNCIL,TRAINLINE,51.26,PASSENGER RAILWAYS,TRAVEL
04-Sep-19,TORBAY COUNCIL,WWW.GWR.COM,274.7,PASSENGER RAILWAYS,TRAVEL
25-Aug-19,"Community & Customer Services
",1&1 INTERNET LIMITED,7.19,COMPUTER NETWORK/INFORMATION SERVICES,MISCELLANEOUS
03-Sep-19,"Community & Customer Services
",WWW.GWR.COM,74,PASSENGER RAILWAYS,TRAVEL
18-Aug-19,"Community & Customer Services
",DMARC ANALYZER,9.8,COMPUTER SOFTWARE STORES,COMPUTER EQUIPMENT & SERVICES
20-Aug-19,"Community & Customer Services
",QA LIMITED / QA.CO,"1,248.00",SCHOOLS AND  EDUCATIONAL SVC-NOT ELSEWHERE CLASSIFIED,TRAINING AND EDUCATIONAL
20-Aug-19,"Community & Customer Services
",SOLARWINDS,77,COMPUTER SOFTWARE STORES,COMPUTER EQUIPMENT & SERVICES
21-Aug-19,"Community & Customer Services
",AMZNMktplace,14.47,MISCELLANEOUS AND SPECIALTY RETAIL STORES,GENERAL RETAIL AND WHOLESALE
21-Aug-19,"Community & Customer Services
",QA LIMITED / QA.CO,"1,248.00",SCHOOLS AND  EDUCATIONAL SVC-NOT ELSEWHERE CLASSIFIED,TRAINING AND EDUCATIONAL
04-Sep-19,"Community & Customer Services
",MSFT * E01008ZLMF,4.5,"COMPUTERS, COMPUTER PERIPHERAL EQUIPMENT, SOFTWARE",COMPUTER EQUIPMENT & SERVICES
06-Aug-19,Financial Services inc Debtors Creditors and internal audit,STAGECOACH SERVICE,33.66,BUS LINES,TRAVEL
05-Aug-19,Financial Services inc Debtors Creditors and internal audit,PREMIER INN44034360,183,PREMIER TRAVEL INN,HOTELS AND ACCOMMODATION
05-Aug-19,Financial Services inc Debtors Creditors and internal audit,PREMIER INN 44537300,79,PREMIER TRAVEL INN,HOTELS AND ACCOMMODATION
05-Aug-19,Financial Services inc Debtors Creditors and internal audit,FLYBE.COM   JH2LOS,205.13,"AIR CARRIERS, AIRLINES-NOT ELSEWHERE CLASSIFIED",TRAVEL
06-Aug-19,Financial Services inc Debtors Creditors and internal audit,TORBAY COUNCIL - WEB,33,GOVERNMENT SERVICES-NOT ELSEWHERE CLASSIFIED,STATUTORY BODIES
06-Aug-19,Financial Services inc Debtors Creditors and internal audit,WWW.ARGOS.CO.UK,159.99,DISCOUNT STORES,GENERAL RETAIL AND WHOLESALE
06-Aug-19,Financial Services inc Debtors Creditors and internal audit,PREMIER INN 44536535,154,"EATING PLACES, RESTAURANTS",RESTAURANTS AND BARS
07-Aug-19,Financial Services inc Debtors Creditors and internal audit,TRAVELODGE GB0000,189,TRAVELODGE,HOTELS AND ACCOMMODATION
06-Aug-19,Financial Services inc Debtors Creditors and internal audit,ARGOS RETAIL GROUP,-74.99,DISCOUNT STORES,GENERAL RETAIL AND WHOLESALE
08-Aug-19,Financial Services inc Debtors Creditors and internal audit,WWW.IKEA.COM,464,"EQUIP, FURNITURE, HOME FURNSHNGS STRS (EXCPT APPL)",GENERAL RETAIL AND WHOLESALE
08-Aug-19,Financial Services inc Debtors Creditors and internal audit,TRAINLINE,50.85,PASSENGER RAILWAYS,TRAVEL
08-Aug-19,Financial Services inc Debtors Creditors and internal audit,TRAINLINE,257.4,PASSENGER RAILWAYS,TRAVEL
08-Aug-19,Financial Services inc Debtors Creditors and internal audit,BCC REGISTER OFFIC,36,GOVERNMENT SERVICES-NOT ELSEWHERE CLASSIFIED,STATUTORY BODIES
08-Aug-19,Financial Services inc Debtors Creditors and internal audit,BCC REGISTER OFFIC,36,GOVERNMENT SERVICES-NOT ELSEWHERE CLASSIFIED,STATUTORY BODIES
12-Aug-19,Financial Services inc Debtors Creditors and internal audit,WWW.THEINNATWOODHALLSP,71,"LODGING-HOTELS,MOTELS,RESORTS-NOT CLASSIFIED",HOTELS AND ACCOMMODATION
12-Aug-19,Financial Services inc Debtors Creditors and internal audit,PREMIER INN44013605,53,PREMIER TRAVEL INN,HOTELS AND ACCOMMODATION
12-Aug-19,Financial Services inc Debtors Creditors and internal audit,FLYBE       Q8U525,249.12,"AIR CARRIERS, AIRLINES-NOT ELSEWHERE CLASSIFIED",TRAVEL
12-Aug-19,Financial Services inc Debtors Creditors and internal audit,FLYBE.COM   QA9SRD,142.13,"AIR CARRIERS, AIRLINES-NOT ELSEWHERE CLASSIFIED",TRAVEL
12-Aug-19,Financial Services inc Debtors Creditors and internal audit,FLYBE.COM   QGPEOD,174.8,"AIR CARRIERS, AIRLINES-NOT ELSEWHERE CLASSIFIED",TRAVEL
13-Aug-19,Financial Services inc Debtors Creditors and internal audit,PREMIER INN44533980,67,"EATING PLACES, RESTAURANTS",RESTAURANTS AND BARS
13-Aug-19,Financial Services inc Debtors Creditors and internal audit,PREMIER INN44533980,76.5,"EATING PLACES, RESTAURANTS",RESTAURANTS AND BARS
13-Aug-19,Financial Services inc Debtors Creditors and internal audit,PREMIER INN44533980,86,"EATING PLACES, RESTAURANTS",RESTAURANTS AND BARS
13-Aug-19,Financial Services inc Debtors Creditors and internal audit,PREMIER INN44533980,67,"EATING PLACES, RESTAURANTS",RESTAURANTS AND BARS
13-Aug-19,Financial Services inc Debtors Creditors and internal audit,PREMIER INN 44533960,80,PREMIER TRAVEL INN,HOTELS AND ACCOMMODATION
13-Aug-19,Financial Services inc Debtors Creditors and internal audit,FLYBE.COM   TIQMLG,182.13,"AIR CARRIERS, AIRLINES-NOT ELSEWHERE CLASSIFIED",TRAVEL
13-Aug-19,Financial Services inc Debtors Creditors and internal audit,PREMIER INN44533980,-67,"EATING PLACES, RESTAURANTS",RESTAURANTS AND BARS
13-Aug-19,Financial Services inc Debtors Creditors and internal audit,PREMIER INN44533980,-76.5,"EATING PLACES, RESTAURANTS",RESTAURANTS AND BARS
15-Aug-19,Financial Services inc Debtors Creditors and internal audit,TRAINLINE,104.05,PASSENGER RAILWAYS,TRAVEL
14-Aug-19,Financial Services inc Debtors Creditors and internal audit,THE ROYAL HOTEL,390,"LODGING-HOTELS,MOTELS,RESORTS-NOT CLASSIFIED",HOTELS AND ACCOMMODATION
15-Aug-19,Financial Services inc Debtors Creditors and internal audit,PREMIER INN44027510,183,PREMIER TRAVEL INN,HOTELS AND ACCOMMODATION
15-Aug-19,Financial Services inc Debtors Creditors and internal audit,PREMIER INN44027510,103,PREMIER TRAVEL INN,HOTELS AND ACCOMMODATION
15-Aug-19,Financial Services inc Debtors Creditors and internal audit,TRAVELODGE GB0000,87,TRAVELODGE,HOTELS AND ACCOMMODATION
15-Aug-19,Financial Services inc Debtors Creditors and internal audit,WWW.ARGOS.CO.UK,183.94,DISCOUNT STORES,GENERAL RETAIL AND WHOLESALE
15-Aug-19,Financial Services inc Debtors Creditors and internal audit,FLYBE       LBOFFM,159.13,"AIR CARRIERS, AIRLINES-NOT ELSEWHERE CLASSIFIED",TRAVEL
16-Aug-19,Financial Services inc Debtors Creditors and internal audit,PREMIER INN 44536880,72,PREMIER TRAVEL INN,HOTELS AND ACCOMMODATION
16-Aug-19,Financial Services inc Debtors Creditors and internal audit,FLYBE.COM   P56KXV,105.41,"AIR CARRIERS, AIRLINES-NOT ELSEWHERE CLASSIFIED",TRAVEL
20-Aug-19,Financial Services inc Debtors Creditors and internal audit,TRAINLINE,51,PASSENGER RAILWAYS,TRAVEL
19-Aug-19,Financial Services inc Debtors Creditors and internal audit,PREMIER INN44521450,92,PREMIER TRAVEL INN,HOTELS AND ACCOMMODATION
19-Aug-19,Financial Services inc Debtors Creditors and internal audit,FLYBE.COM   K4PTHU,205.13,"AIR CARRIERS, AIRLINES-NOT ELSEWHERE CLASSIFIED",TRAVEL
20-Aug-19,Financial Services inc Debtors Creditors and internal audit,TORBAY COUNCIL - CONNECT,-33,GOVERNMENT SERVICES-NOT ELSEWHERE CLASSIFIED,STATUTORY BODIES
21-Aug-19,Financial Services inc Debtors Creditors and internal audit,TRAINLINE,212.75,PASSENGER RAILWAYS,TRAVEL
21-Aug-19,Financial Services inc Debtors Creditors and internal audit,TRAINLINE,111.5,PASSENGER RAILWAYS,TRAVEL
20-Aug-19,Financial Services inc Debtors Creditors and internal audit,PREMIER INN 44536535,97,"EATING PLACES, RESTAURANTS",RESTAURANTS AND BARS
21-Aug-19,Financial Services inc Debtors Creditors and internal audit,TRAVELODGE GB0000,78.99,TRAVELODGE,HOTELS AND ACCOMMODATION
21-Aug-19,Financial Services inc Debtors Creditors and internal audit,PREMIER INN44521815,71,PREMIER TRAVEL INN,HOTELS AND ACCOMMODATION
21-Aug-19,Financial Services inc Debtors Creditors and internal audit,PREMIER INN44537355,71,PREMIER TRAVEL INN,HOTELS AND ACCOMMODATION
21-Aug-19,Financial Services inc Debtors Creditors and internal audit,FLYBE.COM   Q3YNDM,81.33,"AIR CARRIERS, AIRLINES-NOT ELSEWHERE CLASSIFIED",TRAVEL
27-Aug-19,Financial Services inc Debtors Creditors and internal audit,TORBAY COUNCIL - WEB,33,GOVERNMENT SERVICES-NOT ELSEWHERE CLASSIFIED,STATUTORY BODIES
27-Aug-19,Financial Services inc Debtors Creditors and internal audit,TORBAY COUNCIL - WEB,33,GOVERNMENT SERVICES-NOT ELSEWHERE CLASSIFIED,STATUTORY BODIES
27-Aug-19,Financial Services inc Debtors Creditors and internal audit,TORBAY COUNCIL - WEB,11,GOVERNMENT SERVICES-NOT ELSEWHERE CLASSIFIED,STATUTORY BODIES
27-Aug-19,Financial Services inc Debtors Creditors and internal audit,TORBAY COUNCIL - WEB,11,GOVERNMENT SERVICES-NOT ELSEWHERE CLASSIFIED,STATUTORY BODIES
27-Aug-19,Financial Services inc Debtors Creditors and internal audit,TORBAY COUNCIL - WEB,12,GOVERNMENT SERVICES-NOT ELSEWHERE CLASSIFIED,STATUTORY BODIES
27-Aug-19,Financial Services inc Debtors Creditors and internal audit,URBAN HOTEL GRANTHAM,53,"LODGING-HOTELS,MOTELS,RESORTS-NOT CLASSIFIED",HOTELS AND ACCOMMODATION
28-Aug-19,Financial Services inc Debtors Creditors and internal audit,DUNELM ONLINE ORDER,29.95,"DRAPERY, UPOLSTERY, AND WINDOW COVERINGS STORES",GENERAL RETAIL AND WHOLESALE
27-Aug-19,Financial Services inc Debtors Creditors and internal audit,PREMIER INN44019660,77,PREMIER TRAVEL INN,HOTELS AND ACCOMMODATION
27-Aug-19,Financial Services inc Debtors Creditors and internal audit,PREMIER INN44019660,77,PREMIER TRAVEL INN,HOTELS AND ACCOMMODATION
28-Aug-19,Financial Services inc Debtors Creditors and internal audit,WWW.ARGOS.CO.UK,118.94,DISCOUNT STORES,GENERAL RETAIL AND WHOLESALE
28-Aug-19,Financial Services inc Debtors Creditors and internal audit,ARGOS RETAIL GROUP,50.97,DISCOUNT STORES,GENERAL RETAIL AND WHOLESALE
29-Aug-19,Financial Services inc Debtors Creditors and internal audit,Amazon.co.uk*MA8WV1JD4,19.98,DIRECT MARKETING-OTHER DIRECT MARKETERS/NOT ELSEW.,MAIL ORDER / DIRECT SELLING
30-Aug-19,Financial Services inc Debtors Creditors and internal audit,ARGOS RETAIL GROUP,24.99,DISCOUNT STORES,GENERAL RETAIL AND WHOLESALE
02-Sep-19,Financial Services inc Debtors Creditors and internal audit,TRAINLINE,54.1,PASSENGER RAILWAYS,TRAVEL
02-Sep-19,Financial Services inc Debtors Creditors and internal audit,PARK FARM HOTEL & LEISUR,79,"LODGING-HOTELS,MOTELS,RESORTS-NOT CLASSIFIED",HOTELS AND ACCOMMODATION
02-Sep-19,Financial Services inc Debtors Creditors and internal audit,PREMIER INN 44536535,82,"EATING PLACES, RESTAURANTS",RESTAURANTS AND BARS
02-Sep-19,Financial Services inc Debtors Creditors and internal audit,FLYBE.COM   KFWDZK,64.53,"AIR CARRIERS, AIRLINES-NOT ELSEWHERE CLASSIFIED",TRAVEL
03-Sep-19,Financial Services inc Debtors Creditors and internal audit,GEN REGISTER OFFICE,14,GOVERNMENT SERVICES-NOT ELSEWHERE CLASSIFIED,STATUTORY BODIES
03-Sep-19,Financial Services inc Debtors Creditors and internal audit,WWW.DEVON.GOV.UK,35,"COLLEGES, UNIV, PRO SCHOOLS, JUNIOR COLLEGES",TRAINING AND EDUCATIONAL
04-Sep-19,Financial Services inc Debtors Creditors and internal audit,TRAINLINE,154.2,PASSENGER RAILWAYS,TRAVEL
04-Sep-19,Financial Services inc Debtors Creditors and internal audit,TRAINLINE,206.45,PASSENGER RAILWAYS,TRAVEL
04-Sep-19,Financial Services inc Debtors Creditors and internal audit,CURRYS ONLINE,367.99,ELECTRONIC SALES,GENERAL RETAIL AND WHOLESALE
04-Sep-19,Financial Services inc Debtors Creditors and internal audit,KENT COUNTY COUNCIL,22,GOVERNMENT SERVICES-NOT ELSEWHERE CLASSIFIED,STATUTORY BODIES
04-Sep-19,Financial Services inc Debtors Creditors and internal audit,PREMIER INN44523635,113,PREMIER TRAVEL INN,HOTELS AND ACCOMMODATION
06-Aug-19,Financial Services - Children,TORBAY COUNCIL - CONNECT,100,GOVERNMENT SERVICES-NOT ELSEWHERE CLASSIFIED,STATUTORY BODIES
13-Aug-19,Financial Services - Children,JC MOTORCYCLES  TRAINI,120,SCHOOLS AND  EDUCATIONAL SVC-NOT ELSEWHERE CLASSIFIED,TRAINING AND EDUCATIONAL
14-Aug-19,Financial Services - Children,AMZNMktplace,34.37,MISCELLANEOUS AND SPECIALTY RETAIL STORES,GENERAL RETAIL AND WHOLESALE
14-Aug-19,Financial Services - Children,YARN MARKET HOTEL,20,"LODGING-HOTELS,MOTELS,RESORTS-NOT CLASSIFIED",HOTELS AND ACCOMMODATION
14-Aug-19,Financial Services - Children,SOUTH DEVON COLLEGE,300,BOOK STORES,BOOKS AND PERIODICALS
14-Aug-19,Financial Services - Children,WWW.ARGOS.CO.UK,182.94,DISCOUNT STORES,GENERAL RETAIL AND WHOLESALE
15-Aug-19,Financial Services - Children,PREMIER INN44018350,278,PREMIER TRAVEL INN,HOTELS AND ACCOMMODATION
16-Aug-19,Financial Services - Children,TORBAY COUNCIL - CONNECT,35,GOVERNMENT SERVICES-NOT ELSEWHERE CLASSIFIED,STATUTORY BODIES
19-Aug-19,Financial Services - Children,WWW.VOUCHEREXPRESS.CO.,30,"GIFT, CARD, NOVELTY AND SOUVENIR SHOPS",GENERAL RETAIL AND WHOLESALE
21-Aug-19,Financial Services - Children,KENT COUNTY COUNCIL,33,GOVERNMENT SERVICES-NOT ELSEWHERE CLASSIFIED,STATUTORY BODIES
22-Aug-19,Financial Services - Children,WWW.ARGOS.CO.UK,159.99,DISCOUNT STORES,GENERAL RETAIL AND WHOLESALE
23-Aug-19,Financial Services - Children,TORBAY COUNCIL - WEB,33,GOVERNMENT SERVICES-NOT ELSEWHERE CLASSIFIED,STATUTORY BODIES
23-Aug-19,Financial Services - Children,TORBAY COUNCIL - WEB,33,GOVERNMENT SERVICES-NOT ELSEWHERE CLASSIFIED,STATUTORY BODIES
23-Aug-19,Financial Services - Children,TORBAY COUNCIL - WEB,33,GOVERNMENT SERVICES-NOT ELSEWHERE CLASSIFIED,STATUTORY BODIES
23-Aug-19,Financial Services - Children,ROCHDALE MBC,999,GOVERNMENT SERVICES-NOT ELSEWHERE CLASSIFIED,STATUTORY BODIES
23-Aug-19,Financial Services - Children,ROCHDALE MBC,105,GOVERNMENT SERVICES-NOT ELSEWHERE CLASSIFIED,STATUTORY BODIES
23-Aug-19,Financial Services - Children,ROCHDALE MBC,134.25,GOVERNMENT SERVICES-NOT ELSEWHERE CLASSIFIED,STATUTORY BODIES
24-Aug-19,Financial Services - Children,YARN MARKET HOTEL,220,"LODGING-HOTELS,MOTELS,RESORTS-NOT CLASSIFIED",HOTELS AND ACCOMMODATION
27-Aug-19,Financial Services - Children,PREMIER INN 44536685,107,PREMIER TRAVEL INN,HOTELS AND ACCOMMODATION
29-Aug-19,Financial Services - Children,PREMIER INN44018350,76,PREMIER TRAVEL INN,HOTELS AND ACCOMMODATION
19-Aug-19,TDA,MARINE MANAGEMENT,50,GOVERNMENT SERVICES-NOT ELSEWHERE CLASSIFIED,STATUTORY BODIES
23-Aug-19,TDA,WWW.PLANNINGPORTAL.CO.,141,BUSINESS SERVICES-NOT ELSEWHERE CLASSIFIED,MISCELLANEOUS INDUSTRIAL/COMMERCIAL SUPPLIES
23-Aug-19,TDA,WWW.PLANNINGPORTAL.CO.,141,BUSINESS SERVICES-NOT ELSEWHERE CLASSIFIED,MISCELLANEOUS INDUSTRIAL/COMMERCIAL SUPPLIES
06-Aug-19,Housing Options,DEVON HOUSE GUEST HOUS,"1,000.00","LODGING-HOTELS,MOTELS,RESORTS-NOT CLASSIFIED",HOTELS AND ACCOMMODATION
06-Aug-19,Housing Options,TRAVELODGE GB0000,61.99,TRAVELODGE,HOTELS AND ACCOMMODATION
05-Aug-19,Housing Options,TRECARN HOTEL,395,"LODGING-HOTELS,MOTELS,RESORTS-NOT CLASSIFIED",HOTELS AND ACCOMMODATION
05-Aug-19,Housing Options,TRECARN HOTEL,222,"LODGING-HOTELS,MOTELS,RESORTS-NOT CLASSIFIED",HOTELS AND ACCOMMODATION
08-Aug-19,Housing Options,TRAVELODGE GB0000,283.96,TRAVELODGE,HOTELS AND ACCOMMODATION
07-Aug-19,Housing Options,TRECARN HOTEL,355,"LODGING-HOTELS,MOTELS,RESORTS-NOT CLASSIFIED",HOTELS AND ACCOMMODATION
07-Aug-19,Housing Options,TRECARN HOTEL,361,"LODGING-HOTELS,MOTELS,RESORTS-NOT CLASSIFIED",HOTELS AND ACCOMMODATION
07-Aug-19,Housing Options,TRECARN HOTEL,62,"LODGING-HOTELS,MOTELS,RESORTS-NOT CLASSIFIED",HOTELS AND ACCOMMODATION
07-Aug-19,Housing Options,TRECARN HOTEL,355,"LODGING-HOTELS,MOTELS,RESORTS-NOT CLASSIFIED",HOTELS AND ACCOMMODATION
09-Aug-19,Housing Options,TRAVELODGE GB0000,204.97,TRAVELODGE,HOTELS AND ACCOMMODATION
08-Aug-19,Housing Options,TRECARN HOTEL,361,"LODGING-HOTELS,MOTELS,RESORTS-NOT CLASSIFIED",HOTELS AND ACCOMMODATION
08-Aug-19,Housing Options,TRECARN HOTEL,361,"LODGING-HOTELS,MOTELS,RESORTS-NOT CLASSIFIED",HOTELS AND ACCOMMODATION
08-Aug-19,Housing Options,TRECARN HOTEL,401,"LODGING-HOTELS,MOTELS,RESORTS-NOT CLASSIFIED",HOTELS AND ACCOMMODATION
09-Aug-19,Housing Options,TRECARN HOTEL,366,"LODGING-HOTELS,MOTELS,RESORTS-NOT CLASSIFIED",HOTELS AND ACCOMMODATION
09-Aug-19,Housing Options,TRECARN HOTEL,47,"LODGING-HOTELS,MOTELS,RESORTS-NOT CLASSIFIED",HOTELS AND ACCOMMODATION
12-Aug-19,Housing Options,TRAVELODGE GB0000,155.98,TRAVELODGE,HOTELS AND ACCOMMODATION
13-Aug-19,Housing Options,DEVON HOUSE GUEST HOUS,500,"LODGING-HOTELS,MOTELS,RESORTS-NOT CLASSIFIED",HOTELS AND ACCOMMODATION
15-Aug-19,Housing Options,TRAVELODGE GB0000,277.97,TRAVELODGE,HOTELS AND ACCOMMODATION
15-Aug-19,Housing Options,TRAVELODGE GB0000,301.96,TRAVELODGE,HOTELS AND ACCOMMODATION
14-Aug-19,Housing Options,TRECARN HOTEL,323,"LODGING-HOTELS,MOTELS,RESORTS-NOT CLASSIFIED",HOTELS AND ACCOMMODATION
14-Aug-19,Housing Options,TRECARN HOTEL,342,"LODGING-HOTELS,MOTELS,RESORTS-NOT CLASSIFIED",HOTELS AND ACCOMMODATION
14-Aug-19,Housing Options,TRECARN HOTEL,342,"LODGING-HOTELS,MOTELS,RESORTS-NOT CLASSIFIED",HOTELS AND ACCOMMODATION
14-Aug-19,Housing Options,TRECARN HOTEL,114,"LODGING-HOTELS,MOTELS,RESORTS-NOT CLASSIFIED",HOTELS AND ACCOMMODATION
16-Aug-19,Housing Options,TRECARN HOTEL,339,"LODGING-HOTELS,MOTELS,RESORTS-NOT CLASSIFIED",HOTELS AND ACCOMMODATION
19-Aug-19,Housing Options,TRAVELODGE GB0000,85.99,TRAVELODGE,HOTELS AND ACCOMMODATION
21-Aug-19,Housing Options,TRAVELODGE GB0000,73.99,TRAVELODGE,HOTELS AND ACCOMMODATION
21-Aug-19,Housing Options,TRECARN HOTEL,99,"LODGING-HOTELS,MOTELS,RESORTS-NOT CLASSIFIED",HOTELS AND ACCOMMODATION
21-Aug-19,Housing Options,TRECARN HOTEL,370,"LODGING-HOTELS,MOTELS,RESORTS-NOT CLASSIFIED",HOTELS AND ACCOMMODATION
21-Aug-19,Housing Options,TRECARN HOTEL,467,"LODGING-HOTELS,MOTELS,RESORTS-NOT CLASSIFIED",HOTELS AND ACCOMMODATION
21-Aug-19,Housing Options,TRECARN HOTEL,467,"LODGING-HOTELS,MOTELS,RESORTS-NOT CLASSIFIED",HOTELS AND ACCOMMODATION
21-Aug-19,Housing Options,TRECARN HOTEL,370,"LODGING-HOTELS,MOTELS,RESORTS-NOT CLASSIFIED",HOTELS AND ACCOMMODATION
23-Aug-19,Housing Options,Trainline.com,19.58,PASSENGER RAILWAYS,TRAVEL
23-Aug-19,Housing Options,TRECARN HOTEL,475,"LODGING-HOTELS,MOTELS,RESORTS-NOT CLASSIFIED",HOTELS AND ACCOMMODATION
23-Aug-19,Housing Options,TRECARN HOTEL,370,"LODGING-HOTELS,MOTELS,RESORTS-NOT CLASSIFIED",HOTELS AND ACCOMMODATION
28-Aug-19,Housing Options,ARGOS RETAIL GROUP,29.99,DISCOUNT STORES,GENERAL RETAIL AND WHOLESALE
29-Aug-19,Housing Options,TRAVELODGE GB0000,251.96,TRAVELODGE,HOTELS AND ACCOMMODATION
29-Aug-19,Housing Options,TRAVELODGE GB0000,303.96,TRAVELODGE,HOTELS AND ACCOMMODATION
29-Aug-19,Housing Options,TRAVELODGE GB0000,411.93,TRAVELODGE,HOTELS AND ACCOMMODATION
28-Aug-19,Housing Options,TRECARN HOTEL,338,"LODGING-HOTELS,MOTELS,RESORTS-NOT CLASSIFIED",HOTELS AND ACCOMMODATION
28-Aug-19,Housing Options,TRECARN HOTEL,338,"LODGING-HOTELS,MOTELS,RESORTS-NOT CLASSIFIED",HOTELS AND ACCOMMODATION
28-Aug-19,Housing Options,TRECARN HOTEL,357,"LODGING-HOTELS,MOTELS,RESORTS-NOT CLASSIFIED",HOTELS AND ACCOMMODATION
28-Aug-19,Housing Options,TRECARN HOTEL,338,"LODGING-HOTELS,MOTELS,RESORTS-NOT CLASSIFIED",HOTELS AND ACCOMMODATION
29-Aug-19,Housing Options,HOTEL ON BOOKING.COM CAST,210,"LODGING-HOTELS,MOTELS,RESORTS-NOT CLASSIFIED",HOTELS AND ACCOMMODATION
30-Aug-19,Housing Options,TRECARN HOTEL,364,"LODGING-HOTELS,MOTELS,RESORTS-NOT CLASSIFIED",HOTELS AND ACCOMMODATION
30-Aug-19,Housing Options,TRECARN HOTEL,364,"LODGING-HOTELS,MOTELS,RESORTS-NOT CLASSIFIED",HOTELS AND ACCOMMODATION
02-Sep-19,Housing Options,TRAVELODGE GB0000,153.97,TRAVELODGE,HOTELS AND ACCOMMODATION
02-Sep-19,Housing Options,TRAVELODGE GB0000,213.96,TRAVELODGE,HOTELS AND ACCOMMODATION
04-Sep-19,Housing Options,PRESTON SANDS HOTEL,509.5,"LODGING-HOTELS,MOTELS,RESORTS-NOT CLASSIFIED",HOTELS AND ACCOMMODATION
02-Sep-19,Housing Options,TRECARN HOTEL,207,"LODGING-HOTELS,MOTELS,RESORTS-NOT CLASSIFIED",HOTELS AND ACCOMMODATION
04-Sep-19,Housing Options,TRECARN HOTEL,339,"LODGING-HOTELS,MOTELS,RESORTS-NOT CLASSIFIED",HOTELS AND ACCOMMODATION
04-Sep-19,Housing Options,TRECARN HOTEL,339,"LODGING-HOTELS,MOTELS,RESORTS-NOT CLASSIFIED",HOTELS AND ACCOMMODATION
04-Sep-19,Housing Options,TRECARN HOTEL,339,"LODGING-HOTELS,MOTELS,RESORTS-NOT CLASSIFIED",HOTELS AND ACCOMMODATION
04-Sep-19,Housing Options,TRECARN HOTEL,352,"LODGING-HOTELS,MOTELS,RESORTS-NOT CLASSIFIED",HOTELS AND ACCOMMODATION
04-Sep-19,Housing Options,TRECARN HOTEL,313,"LODGING-HOTELS,MOTELS,RESORTS-NOT CLASSIFIED",HOTELS AND ACCOMMODATION
05-Sep-19,Housing Options,TRAVELODGE GB0804,124,TRAVELODGE,HOTELS AND ACCOMMODATION
13-Aug-19,Community Protection,WWW.PLANNINGPORTAL.CO.,487,BUSINESS SERVICES-NOT ELSEWHERE CLASSIFIED,MISCELLANEOUS INDUSTRIAL/COMMERCIAL SUPPLIES
14-Aug-19,Community Protection,SECURITY INDUSTRY,220,"DETECTVE/PROTECTVE AGNCY,SECURITY SRVS, ARMOR CARS",PERSONAL SERVICES
28-Aug-19,Community Protection,TERRAQUEST SOLUTIONS LTD,21,"COMPUTERS, COMPUTER PERIPHERAL EQUIPMENT, SOFTWARE",COMPUTER EQUIPMENT & SERVICES
07-Aug-19,Financial Services - Children,TORBAY COUNCIL - WEB,22,GOVERNMENT SERVICES-NOT ELSEWHERE CLASSIFIED,STATUTORY BODIES
07-Aug-19,Financial Services - Children,WWW.ARGOS.CO.UK,272.93,DISCOUNT STORES,GENERAL RETAIL AND WHOLESALE
09-Aug-19,Financial Services - Children,TRAINLINE,137.8,PASSENGER RAILWAYS,TRAVEL
09-Aug-19,Financial Services - Children,TRAINLINE,336.5,PASSENGER RAILWAYS,TRAVEL
09-Aug-19,Financial Services - Children,HM PASSPORT OFFICE,49,GOVERNMENT SERVICES-NOT ELSEWHERE CLASSIFIED,STATUTORY BODIES
08-Aug-19,Financial Services - Children,PREMIER INN44024405,-198,PREMIER TRAVEL INN,HOTELS AND ACCOMMODATION
08-Aug-19,Financial Services - Children,PREMIER INN44024405,-173,PREMIER TRAVEL INN,HOTELS AND ACCOMMODATION
08-Aug-19,Financial Services - Children,PREMIER INN44024405,-163,PREMIER TRAVEL INN,HOTELS AND ACCOMMODATION
18-Aug-19,Financial Services - Children,AMAZON PRIME*MH7H73R84 AM,7.99,DIRECT MARKETING-CONTINUITY/SUBSCRIPTION MERCHANTS,MAIL ORDER / DIRECT SELLING
22-Aug-19,Financial Services - Children,TORBAY COUNCIL - WEB,33,GOVERNMENT SERVICES-NOT ELSEWHERE CLASSIFIED,STATUTORY BODIES
22-Aug-19,Financial Services - Children,PREMIER INN44521720,67,PREMIER TRAVEL INN,HOTELS AND ACCOMMODATION
22-Aug-19,Financial Services - Children,PREMIER INN44123965,122,PREMIER TRAVEL INN,HOTELS AND ACCOMMODATION
22-Aug-19,Financial Services - Children,FLYBE.COM   TAYHKO,113.13,"AIR CARRIERS, AIRLINES-NOT ELSEWHERE CLASSIFIED",TRAVEL
23-Aug-19,Financial Services - Children,TORBAY COUNCIL - WEB,33,GOVERNMENT SERVICES-NOT ELSEWHERE CLASSIFIED,STATUTORY BODIES
23-Aug-19,Financial Services - Children,TORBAY COUNCIL - WEB,33,GOVERNMENT SERVICES-NOT ELSEWHERE CLASSIFIED,STATUTORY BODIES
23-Aug-19,Financial Services - Children,TRAVELODGE GB0000,69.98,TRAVELODGE,HOTELS AND ACCOMMODATION
23-Aug-19,Financial Services - Children,TRAINLINE,225.6,PASSENGER RAILWAYS,TRAVEL
23-Aug-19,Financial Services - Children,PREMIER INN44013440,73,PREMIER TRAVEL INN,HOTELS AND ACCOMMODATION
29-Aug-19,Financial Services - Children,TRAVELODGE GB0000,68.99,TRAVELODGE,HOTELS AND ACCOMMODATION
30-Aug-19,Financial Services - Children,TRAINLINE,154.2,PASSENGER RAILWAYS,TRAVEL
29-Aug-19,Financial Services - Children,PREMIER INN44019660,83,PREMIER TRAVEL INN,HOTELS AND ACCOMMODATION
29-Aug-19,Financial Services - Children,PREMIER INN44521665,80,PREMIER TRAVEL INN,HOTELS AND ACCOMMODATION
29-Aug-19,Financial Services - Children,FLYBE.COM   MMY7EW,205.13,"AIR CARRIERS, AIRLINES-NOT ELSEWHERE CLASSIFIED",TRAVEL
02-Sep-19,Financial Services - Children,DE ROUGEMONT MANOR,70,"LODGING-HOTELS,MOTELS,RESORTS-NOT CLASSIFIED",HOTELS AND ACCOMMODATION
02-Sep-19,Financial Services - Children,PREMIER INN44019660,-83,PREMIER TRAVEL INN,HOTELS AND ACCOMMODATION
03-Sep-19,Financial Services - Children,PREMIER INN 44536020,67,PREMIER TRAVEL INN,HOTELS AND ACCOMMODATION
03-Sep-19,Financial Services - Children,FLYBE.COM   N8SOBU,205.13,"AIR CARRIERS, AIRLINES-NOT ELSEWHERE CLASSIFIED",TRAVEL
13-Aug-19,Community Safety,Hotel on Booking.com Metr,389.2,"LODGING-HOTELS,MOTELS,RESORTS-NOT CLASSIFIED",HOTELS AND ACCOMMODATION
16-Aug-19,Community Safety,TRECARN HOTEL,148,"LODGING-HOTELS,MOTELS,RESORTS-NOT CLASSIFIED",HOTELS AND ACCOMMODATION
06-Aug-19,Building Control,WWW.PSF.CO.UK,59.95,MEN'S AND WOMEN'S CLOTHING STORES,GENERAL RETAIL AND WHOLESALE
09-Sep-19,Early Education,JS ONLINE GROCERY,51.69,"GROCERY STORES, SUPERMARKETS",GENERAL RETAIL AND WHOLESALE
23-Sep-19,Early Education,JS ONLINE GROCERY,58.21,"GROCERY STORES, SUPERMARKETS",GENERAL RETAIL AND WHOLESALE
27-Sep-19,Planning Apps - Appeals & Enforcement,TRAINLINE,58.88,PASSENGER RAILWAYS,TRAVEL
02-Oct-19,Planning Apps - Appeals & Enforcement,WWW.MANSONS.CO.UK,85.99,"MUSIC STORES-INSTRUMENTS, PIANOS, SHEET MUSIC",GENERAL RETAIL AND WHOLESALE
12-Sep-19,Community Protection,MILK&MORE,7.62,DAIRY PRODUCTS STORES,CATERING AND CATERING SUPPLIES
18-Sep-19,Community Protection,AMZNMktplace,30.39,MISCELLANEOUS AND SPECIALTY RETAIL STORES,GENERAL RETAIL AND WHOLESALE
19-Sep-19,Community Protection,SHOPFITTING WAREHOUSE,54.6,OFFICE AND COMMERCIAL FURNITURE,OFFICE STATIONERY EQUIPMENT AND SUPPLIES
19-Sep-19,Community Protection,MILK&MORE,7.62,DAIRY PRODUCTS STORES,CATERING AND CATERING SUPPLIES
25-Sep-19,Community Protection,INKREDIBLE,13.83,ELECTRONIC SALES,GENERAL RETAIL AND WHOLESALE
25-Sep-19,Community Protection,CURRYS ONLINE,49,ELECTRONIC SALES,GENERAL RETAIL AND WHOLESALE
26-Sep-19,Community Protection,MILK&MORE,7.62,DAIRY PRODUCTS STORES,CATERING AND CATERING SUPPLIES
29-Sep-19,Community Protection,FACEBK *7EG56NNEX2,5.4,ADVERTISING SERVICES,PRINT AND ADVERTISING
30-Sep-19,Community Protection,FACEBK *HK7CNNAFX2,17,ADVERTISING SERVICES,PRINT AND ADVERTISING
01-Oct-19,Community Protection,WWW.GWR.COM,50.5,PASSENGER RAILWAYS,TRAVEL
01-Oct-19,Community Protection,FACEBK *W29ZCNWEX2,17,ADVERTISING SERVICES,PRINT AND ADVERTISING
03-Oct-19,Community Protection,MILK&MORE,7.62,DAIRY PRODUCTS STORES,CATERING AND CATERING SUPPLIES
17-Sep-19,Business Services,MARITIME INTELLIGENCE,282,"ORGANIZATIONS, MEMBERSHIP-NOT ELSEWHERE CLASSIFIED",CLUBS/ASSOCIATIONS/ORGANISATIONS
24-Sep-19,Business Services,TRAINLINE,94.68,PASSENGER RAILWAYS,TRAVEL
24-Sep-19,Business Services,WWW.TORBAYSEASCHOOL.CO,120,SCHOOLS AND  EDUCATIONAL SVC-NOT ELSEWHERE CLASSIFIED,TRAINING AND EDUCATIONAL
24-Sep-19,Business Services,PREMIER INN44011950,182,PREMIER TRAVEL INN,HOTELS AND ACCOMMODATION
25-Sep-19,Business Services,WWW.RYA.ORG.UK,60,BUSINESS SERVICES-NOT ELSEWHERE CLASSIFIED,MISCELLANEOUS INDUSTRIAL/COMMERCIAL SUPPLIES
27-Sep-19,Business Services,TORBAY BUSINESS FORUM,12.5,"ORGANIZATIONS, MEMBERSHIP-NOT ELSEWHERE CLASSIFIED",CLUBS/ASSOCIATIONS/ORGANISATIONS
02-Oct-19,Business Services,GALA TENT,602.99,TENT AND AWNING SHOPS,GENERAL RETAIL AND WHOLESALE
18-Sep-19,Print & Post Room,WWW.BINDINGSTORE.CO.UK,90.54,ELECTRICAL PARTS AND EQUIPMENT,BUILDING MATERIALS
09-Sep-19,Legal Services,ARGOS LTD,45.98,DISCOUNT STORES,GENERAL RETAIL AND WHOLESALE
10-Sep-19,Legal Services,BT CONFERENCING,159.23,TELECOM INCL PREPAID/RECURRING PHONE SVCS,TELECOMMUNICATION SERVICES
11-Sep-19,Legal Services,CURRYS,87.43,ELECTRONIC SALES,GENERAL RETAIL AND WHOLESALE
11-Sep-19,Legal Services,Amazon.co.uk*MA8V50B74,78.54,DIRECT MARKETING-OTHER DIRECT MARKETERS/NOT ELSEW.,MAIL ORDER / DIRECT SELLING
12-Sep-19,Legal Services,AMZNMktplace,81.84,MISCELLANEOUS AND SPECIALTY RETAIL STORES,GENERAL RETAIL AND WHOLESALE
13-Sep-19,Legal Services,POST OFFICE COUNTER,10.92,POSTAL SERVICES-GOVERNMENT ONLY,MAIL AND COURIER SERVICES
20-Sep-19,Legal Services,SIMPLY SOUND AND LIGHTING,259.8,"CABLE, SATELLITE, OTHER PAY TELEVISION, RADIO SVCS",TELECOMMUNICATION SERVICES
25-Sep-19,Legal Services,ARGOS LTD,19.99,DISCOUNT STORES,GENERAL RETAIL AND WHOLESALE
28-Sep-19,Legal Services,SPORTSDIRECT.COM,35.98,SPORTING GOODS STORES,GENERAL RETAIL AND WHOLESALE
30-Sep-19,Legal Services,WWW.GOV.UK,1.5,PROFESSIONAL SERVICES-NOT ELSEWHERE CLASSIFIED,PROFESSIONAL SERVICES
30-Sep-19,Legal Services,Amazon.co.uk*MO0H35F04,36.73,DIRECT MARKETING-OTHER DIRECT MARKETERS/NOT ELSEW.,MAIL ORDER / DIRECT SELLING
01-Oct-19,Legal Services,CROSS COUNTRY TRAINS,72.6,PASSENGER RAILWAYS,TRAVEL
24-Sep-19,Financial Services inc Debtors Creditors and internal audit,TRAINLINE,22.12,PASSENGER RAILWAYS,TRAVEL
02-Oct-19,Financial Services inc Debtors Creditors and internal audit,COMPANIES HOUSE,13,GOVERNMENT SERVICES-NOT ELSEWHERE CLASSIFIED,STATUTORY BODIES
02-Oct-19,Financial Services inc Debtors Creditors and internal audit,COMPANIES HOUSE,13,GOVERNMENT SERVICES-NOT ELSEWHERE CLASSIFIED,STATUTORY BODIES
23-Sep-19,Print & Post Room,WWW.EUROPE-SUBSTANCE.C,753.36,MISCELLANEOUS AND SPECIALTY RETAIL STORES,GENERAL RETAIL AND WHOLESALE
30-Sep-19,Print & Post Room,VENTURE TOT6G7RFT,651,"COMP PROGRAMING,DATA PRCSNG,INTGRTD SYS DSGN SRVS",COMPUTER EQUIPMENT & SERVICES
01-Oct-19,Print & Post Room,WWW.PAPERBAGCO.CO.UK,342,MISCELLANEOUS GENERAL MERCHANDISE,GENERAL RETAIL AND WHOLESALE
01-Oct-19,Print & Post Room,WWW.PENSUNLIMITED.CO.U,286.8,"GIFT, CARD, NOVELTY AND SOUVENIR SHOPS",GENERAL RETAIL AND WHOLESALE
12-Sep-19,Local Transport Plan - strategic transport,Hotel*8117706713324,190,TRAVEL AGENCIES AND TOUR OPERATORS,TRAVEL
27-Sep-19,Local Transport Plan - strategic transport,AMAZON.CO.UK*MA1YV1YL4 AM,23.98,MISCELLANEOUS AND SPECIALTY RETAIL STORES,GENERAL RETAIL AND WHOLESALE
03-Oct-19,Local Transport Plan - strategic transport,WILKO RETAIL LIMITED,8.5,MISCELLANEOUS GENERAL MERCHANDISE,GENERAL RETAIL AND WHOLESALE
10-Sep-19,ICT Training,WWW.GWR.COM,49.9,PASSENGER RAILWAYS,TRAVEL
24-Sep-19,ICT Training,WWW.GWR.COM,-38.9,PASSENGER RAILWAYS,TRAVEL
26-Sep-19,ICT Training,AMZNMktplace,897,MISCELLANEOUS AND SPECIALTY RETAIL STORES,GENERAL RETAIL AND WHOLESALE
01-Oct-19,ICT Training,WWW.GWR.COM,29.7,PASSENGER RAILWAYS,TRAVEL
09-Sep-19,TORBAY COUNCIL,POSTURITE LTD,460.62,BUSINESS SERVICES-NOT ELSEWHERE CLASSIFIED,MISCELLANEOUS INDUSTRIAL/COMMERCIAL SUPPLIES
10-Sep-19,TORBAY COUNCIL,WWW.GWR.COM,267,PASSENGER RAILWAYS,TRAVEL
14-Sep-19,TORBAY COUNCIL,WWW.GWR.COM,-263.7,PASSENGER RAILWAYS,TRAVEL
18-Sep-19,TORBAY COUNCIL,EDGBASTON PALACE,110,"LODGING-HOTELS,MOTELS,RESORTS-NOT CLASSIFIED",HOTELS AND ACCOMMODATION
25-Sep-19,"Community & Customer Services
",1&1 INTERNET LIMITED,7.19,COMPUTER NETWORK/INFORMATION SERVICES,MISCELLANEOUS
05-Sep-19,"Community & Customer Services
",MSFT *<E080094D7X>,4.5,"COMPUTERS, COMPUTER PERIPHERAL EQUIPMENT, SOFTWARE",COMPUTER EQUIPMENT & SERVICES
10-Sep-19,"Community & Customer Services
",AMZNMktplace,72,MISCELLANEOUS AND SPECIALTY RETAIL STORES,GENERAL RETAIL AND WHOLESALE
12-Sep-19,"Community & Customer Services
",POSTURITE LTD,470.16,BUSINESS SERVICES-NOT ELSEWHERE CLASSIFIED,MISCELLANEOUS INDUSTRIAL/COMMERCIAL SUPPLIES
18-Sep-19,"Community & Customer Services
",DMARC ANALYZER,9.51,COMPUTER SOFTWARE STORES,COMPUTER EQUIPMENT & SERVICES
19-Sep-19,"Community & Customer Services
",Amazon.co.uk*MA61B6KI4,17.35,DIRECT MARKETING-OTHER DIRECT MARKETERS/NOT ELSEW.,MAIL ORDER / DIRECT SELLING
20-Sep-19,"Community & Customer Services
",B & Q 1237,270,HOME SUPPLY WAREHOUSE STORES,GENERAL RETAIL AND WHOLESALE
06-Sep-19,Financial Services inc Debtors Creditors and internal audit,ARGOS RETAIL GROUP,9.99,DISCOUNT STORES,GENERAL RETAIL AND WHOLESALE
06-Sep-19,Financial Services inc Debtors Creditors and internal audit,ARGOS RETAIL GROUP,-24.99,DISCOUNT STORES,GENERAL RETAIL AND WHOLESALE
09-Sep-19,Financial Services inc Debtors Creditors and internal audit,TRAINLINE,108,PASSENGER RAILWAYS,TRAVEL
10-Sep-19,Financial Services inc Debtors Creditors and internal audit,TRAINLINE,99.2,PASSENGER RAILWAYS,TRAVEL
10-Sep-19,Financial Services inc Debtors Creditors and internal audit,TRAINLINE,70.5,PASSENGER RAILWAYS,TRAVEL
10-Sep-19,Financial Services inc Debtors Creditors and internal audit,TRAINLINE,40,PASSENGER RAILWAYS,TRAVEL
10-Sep-19,Financial Services inc Debtors Creditors and internal audit,TRAINLINE,171.5,PASSENGER RAILWAYS,TRAVEL
10-Sep-19,Financial Services inc Debtors Creditors and internal audit,TRAINLINE,99.3,PASSENGER RAILWAYS,TRAVEL
10-Sep-19,Financial Services inc Debtors Creditors and internal audit,LBRUT INTERNET,29,GOVERNMENT SERVICES-NOT ELSEWHERE CLASSIFIED,STATUTORY BODIES
10-Sep-19,Financial Services inc Debtors Creditors and internal audit,PREMIER INN44019165,66,PREMIER TRAVEL INN,HOTELS AND ACCOMMODATION
10-Sep-19,Financial Services inc Debtors Creditors and internal audit,FLYBE       UG3MCU,79.53,"AIR CARRIERS, AIRLINES-NOT ELSEWHERE CLASSIFIED",TRAVEL
10-Sep-19,Financial Services inc Debtors Creditors and internal audit,FLYBE       UI6M5J,33.53,"AIR CARRIERS, AIRLINES-NOT ELSEWHERE CLASSIFIED",TRAVEL
16-Sep-19,Financial Services inc Debtors Creditors and internal audit,TRAINLINE,89.4,PASSENGER RAILWAYS,TRAVEL
16-Sep-19,Financial Services inc Debtors Creditors and internal audit,TRAINLINE,308.5,PASSENGER RAILWAYS,TRAVEL
17-Sep-19,Financial Services inc Debtors Creditors and internal audit,TRAVELODGE GB0000,74.99,TRAVELODGE,HOTELS AND ACCOMMODATION
18-Sep-19,Financial Services inc Debtors Creditors and internal audit,TRAINLINE,43.9,PASSENGER RAILWAYS,TRAVEL
17-Sep-19,Financial Services inc Debtors Creditors and internal audit,PREMIER INN44034360,-183,PREMIER TRAVEL INN,HOTELS AND ACCOMMODATION
19-Sep-19,Financial Services inc Debtors Creditors and internal audit,TRAINLINE,50.4,PASSENGER RAILWAYS,TRAVEL
19-Sep-19,Financial Services inc Debtors Creditors and internal audit,TRAINLINE,39.6,PASSENGER RAILWAYS,TRAVEL
19-Sep-19,Financial Services inc Debtors Creditors and internal audit,TRAINLINE,193,PASSENGER RAILWAYS,TRAVEL
18-Sep-19,Financial Services inc Debtors Creditors and internal audit,PREMIER INN 44536865,180,PREMIER TRAVEL INN,HOTELS AND ACCOMMODATION
20-Sep-19,Financial Services inc Debtors Creditors and internal audit,TRAINLINE,99.2,PASSENGER RAILWAYS,TRAVEL
19-Sep-19,Financial Services inc Debtors Creditors and internal audit,PREMIER INN44028630,64,PREMIER TRAVEL INN,HOTELS AND ACCOMMODATION
19-Sep-19,Financial Services inc Debtors Creditors and internal audit,PREMIER INN44028680,57,PREMIER TRAVEL INN,HOTELS AND ACCOMMODATION
20-Sep-19,Financial Services inc Debtors Creditors and internal audit,PREMIER INN44521880,55,PREMIER TRAVEL INN,HOTELS AND ACCOMMODATION
24-Sep-19,Financial Services inc Debtors Creditors and internal audit,WWW.ARGOS.CO.UK,113.94,DISCOUNT STORES,GENERAL RETAIL AND WHOLESALE
25-Sep-19,Financial Services inc Debtors Creditors and internal audit,BRADFORD MET COUNCIL,35,GOVERNMENT SERVICES-NOT ELSEWHERE CLASSIFIED,STATUTORY BODIES
25-Sep-19,Financial Services inc Debtors Creditors and internal audit,PREMIER INN44027510,110.99,PREMIER TRAVEL INN,HOTELS AND ACCOMMODATION
03-Sep-19,Financial Services inc Debtors Creditors and internal audit,GEN REGISTER OFFICE,-7.5,GOVERNMENT SERVICES-NOT ELSEWHERE CLASSIFIED,STATUTORY BODIES
27-Sep-19,Financial Services inc Debtors Creditors and internal audit,WWW.BROADMEAD-HOTEL.CO.U,120.5,"LODGING-HOTELS,MOTELS,RESORTS-NOT CLASSIFIED",HOTELS AND ACCOMMODATION
27-Sep-19,Financial Services inc Debtors Creditors and internal audit,PREMIER INN44027510,-110.99,PREMIER TRAVEL INN,HOTELS AND ACCOMMODATION
30-Sep-19,Financial Services inc Debtors Creditors and internal audit,WWW.BEDS.CO.UK,328,"EQUIP, FURNITURE, HOME FURNSHNGS STRS (EXCPT APPL)",GENERAL RETAIL AND WHOLESALE
01-Oct-19,Financial Services inc Debtors Creditors and internal audit,TRAINLINE,64.5,PASSENGER RAILWAYS,TRAVEL
30-Sep-19,Financial Services inc Debtors Creditors and internal audit,FLYBE       KL5ZHX,155.84,"AIR CARRIERS, AIRLINES-NOT ELSEWHERE CLASSIFIED",TRAVEL
30-Sep-19,Financial Services inc Debtors Creditors and internal audit,FLYBE       KMUFVJ,132.84,"AIR CARRIERS, AIRLINES-NOT ELSEWHERE CLASSIFIED",TRAVEL
30-Sep-19,Financial Services inc Debtors Creditors and internal audit,PREMIER INN44531965,400,PREMIER TRAVEL INN,HOTELS AND ACCOMMODATION
30-Sep-19,Financial Services inc Debtors Creditors and internal audit,PREMIER INN44531965,181,PREMIER TRAVEL INN,HOTELS AND ACCOMMODATION
30-Sep-19,Financial Services inc Debtors Creditors and internal audit,FLYBE.COM   KJVVLB,39.99,"AIR CARRIERS, AIRLINES-NOT ELSEWHERE CLASSIFIED",TRAVEL
30-Sep-19,Financial Services inc Debtors Creditors and internal audit,FLYBE.COM   KJYFGK,135.84,"AIR CARRIERS, AIRLINES-NOT ELSEWHERE CLASSIFIED",TRAVEL
30-Sep-19,Financial Services inc Debtors Creditors and internal audit,FLYBE.COM   KKE7S9,135.84,"AIR CARRIERS, AIRLINES-NOT ELSEWHERE CLASSIFIED",TRAVEL
30-Sep-19,Financial Services inc Debtors Creditors and internal audit,FLYBE.COM   KL3NJM,135.84,"AIR CARRIERS, AIRLINES-NOT ELSEWHERE CLASSIFIED",TRAVEL
30-Sep-19,Financial Services inc Debtors Creditors and internal audit,FLYBE.COM   KKX9ZW,135.84,"AIR CARRIERS, AIRLINES-NOT ELSEWHERE CLASSIFIED",TRAVEL
30-Sep-19,Financial Services inc Debtors Creditors and internal audit,FLYBE.COM   KMDI4G,119.84,"AIR CARRIERS, AIRLINES-NOT ELSEWHERE CLASSIFIED",TRAVEL
30-Sep-19,Financial Services inc Debtors Creditors and internal audit,FLYBE.COM   KM5ZA3,119.84,"AIR CARRIERS, AIRLINES-NOT ELSEWHERE CLASSIFIED",TRAVEL
30-Sep-19,Financial Services inc Debtors Creditors and internal audit,FLYBE.COM   KMKJ6P,119.84,"AIR CARRIERS, AIRLINES-NOT ELSEWHERE CLASSIFIED",TRAVEL
30-Sep-19,Financial Services inc Debtors Creditors and internal audit,FLYBE.COM   KN3DCG,119.84,"AIR CARRIERS, AIRLINES-NOT ELSEWHERE CLASSIFIED",TRAVEL
02-Oct-19,Financial Services inc Debtors Creditors and internal audit,TRAINLINE,50.4,PASSENGER RAILWAYS,TRAVEL
01-Oct-19,Financial Services inc Debtors Creditors and internal audit,PREMIER INN 44536535,49,"EATING PLACES, RESTAURANTS",RESTAURANTS AND BARS
01-Oct-19,Financial Services inc Debtors Creditors and internal audit,FLYBE       NCY4BI,108.84,"AIR CARRIERS, AIRLINES-NOT ELSEWHERE CLASSIFIED",TRAVEL
03-Oct-19,Financial Services inc Debtors Creditors and internal audit,AMZNMKTPLACE AMAZON.CO.UK,99.86,MISCELLANEOUS AND SPECIALTY RETAIL STORES,GENERAL RETAIL AND WHOLESALE
03-Oct-19,Financial Services inc Debtors Creditors and internal audit,TRAINLINE,221.7,PASSENGER RAILWAYS,TRAVEL
02-Oct-19,Financial Services inc Debtors Creditors and internal audit,PREMIER INN44027510,85.5,PREMIER TRAVEL INN,HOTELS AND ACCOMMODATION
02-Oct-19,Financial Services inc Debtors Creditors and internal audit,PREMIER INN44031700,49,PREMIER TRAVEL INN,HOTELS AND ACCOMMODATION
02-Oct-19,Financial Services inc Debtors Creditors and internal audit,PREMIER INN44031700,49,PREMIER TRAVEL INN,HOTELS AND ACCOMMODATION
02-Oct-19,Financial Services inc Debtors Creditors and internal audit,PREMIER INN44031700,49,PREMIER TRAVEL INN,HOTELS AND ACCOMMODATION
02-Oct-19,Financial Services inc Debtors Creditors and internal audit,PREMIER INN44031700,49,PREMIER TRAVEL INN,HOTELS AND ACCOMMODATION
02-Oct-19,Financial Services inc Debtors Creditors and internal audit,PREMIER INN44031700,68,PREMIER TRAVEL INN,HOTELS AND ACCOMMODATION
02-Oct-19,Financial Services inc Debtors Creditors and internal audit,PREMIER INN 39137590,101,PREMIER TRAVEL INN,HOTELS AND ACCOMMODATION
02-Oct-19,Financial Services inc Debtors Creditors and internal audit,PREMIER INN 44534750,526,PREMIER TRAVEL INN,HOTELS AND ACCOMMODATION
02-Oct-19,Financial Services inc Debtors Creditors and internal audit,PREMIER INN 44536395,138,PREMIER TRAVEL INN,HOTELS AND ACCOMMODATION
03-Oct-19,Financial Services inc Debtors Creditors and internal audit,HM PASSPORT,249,GOVERNMENT SERVICES-NOT ELSEWHERE CLASSIFIED,STATUTORY BODIES
03-Oct-19,Financial Services inc Debtors Creditors and internal audit,TORBAY COUNCIL - WEB,11,GOVERNMENT SERVICES-NOT ELSEWHERE CLASSIFIED,STATUTORY BODIES
03-Oct-19,Financial Services inc Debtors Creditors and internal audit,TORBAY COUNCIL - WEB,33,GOVERNMENT SERVICES-NOT ELSEWHERE CLASSIFIED,STATUTORY BODIES
03-Oct-19,Financial Services inc Debtors Creditors and internal audit,TRAVELODGE GB0000,131,TRAVELODGE,HOTELS AND ACCOMMODATION
10-Sep-19,Financial Services - Children,SPECSAVERS 00053000HER,154,"OPTICIANS,OPTICAL GOODS AND  EYEGLASSES",MEDICAL SUPPLIES AND SERVICES
11-Sep-19,Financial Services - Children,TRAVELODGE GB0000,154.85,TRAVELODGE,HOTELS AND ACCOMMODATION
12-Sep-19,Financial Services - Children,PLYMOUTH CITY/INET,822.69,COMPUTER NETWORK/INFORMATION SERVICES,MISCELLANEOUS
13-Sep-19,Financial Services - Children,HOLIDAY PAYMENT VRUK,238.9,TRAVEL AGENCIES AND TOUR OPERATORS,TRAVEL
27-Sep-19,Financial Services - Children,ARGOS RETAIL GROUP,29.99,DISCOUNT STORES,GENERAL RETAIL AND WHOLESALE
03-Oct-19,Financial Services - Children,ISLAND VIEW HOLIDAYS,"1,000.00","LODGING-HOTELS,MOTELS,RESORTS-NOT CLASSIFIED",HOTELS AND ACCOMMODATION
03-Oct-19,Financial Services - Children,ISLAND VIEW HOLIDAYS,164.75,"LODGING-HOTELS,MOTELS,RESORTS-NOT CLASSIFIED",HOTELS AND ACCOMMODATION
17-Sep-19,"Community & Customer Services
",TICKETS ERA00129,144,"ORGANIZATIONS, MEMBERSHIP-NOT ELSEWHERE CLASSIFIED",CLUBS/ASSOCIATIONS/ORGANISATIONS
23-Sep-19,"Community & Customer Services
",Trainline.com,51.26,PASSENGER RAILWAYS,TRAVEL
06-Sep-19,Housing Options,TRAVELODGE GB0000,260.96,TRAVELODGE,HOTELS AND ACCOMMODATION
06-Sep-19,Housing Options,TRAVELODGE GB0000,202.96,TRAVELODGE,HOTELS AND ACCOMMODATION
06-Sep-19,Housing Options,TRAVELODGE GB0000,202.96,TRAVELODGE,HOTELS AND ACCOMMODATION
06-Sep-19,Housing Options,TRECARN HOTEL,318,"LODGING-HOTELS,MOTELS,RESORTS-NOT CLASSIFIED",HOTELS AND ACCOMMODATION
06-Sep-19,Housing Options,TRECARN HOTEL,224,"LODGING-HOTELS,MOTELS,RESORTS-NOT CLASSIFIED",HOTELS AND ACCOMMODATION
06-Sep-19,Housing Options,TRECARN HOTEL,318,"LODGING-HOTELS,MOTELS,RESORTS-NOT CLASSIFIED",HOTELS AND ACCOMMODATION
10-Sep-19,Housing Options,TRAVELODGE GB0000,436.94,TRAVELODGE,HOTELS AND ACCOMMODATION
10-Sep-19,Housing Options,TRAVELODGE GB0000,410.94,TRAVELODGE,HOTELS AND ACCOMMODATION
10-Sep-19,Housing Options,TRAVELODGE GB0000,410.94,TRAVELODGE,HOTELS AND ACCOMMODATION
10-Sep-19,Housing Options,NATIONAL EXPRESS LIMITED,37.9,BUS LINES,TRAVEL
11-Sep-19,Housing Options,PRESTON SANDS HOTEL,280,"LODGING-HOTELS,MOTELS,RESORTS-NOT CLASSIFIED",HOTELS AND ACCOMMODATION
10-Sep-19,Housing Options,TRECARN HOTEL,306,"LODGING-HOTELS,MOTELS,RESORTS-NOT CLASSIFIED",HOTELS AND ACCOMMODATION
10-Sep-19,Housing Options,TRECARN HOTEL,306,"LODGING-HOTELS,MOTELS,RESORTS-NOT CLASSIFIED",HOTELS AND ACCOMMODATION
10-Sep-19,Housing Options,TRECARN HOTEL,88,"LODGING-HOTELS,MOTELS,RESORTS-NOT CLASSIFIED",HOTELS AND ACCOMMODATION
11-Sep-19,Housing Options,TRECARN HOTEL,282,"LODGING-HOTELS,MOTELS,RESORTS-NOT CLASSIFIED",HOTELS AND ACCOMMODATION
11-Sep-19,Housing Options,TRECARN HOTEL,282,"LODGING-HOTELS,MOTELS,RESORTS-NOT CLASSIFIED",HOTELS AND ACCOMMODATION
11-Sep-19,Housing Options,TRECARN HOTEL,282,"LODGING-HOTELS,MOTELS,RESORTS-NOT CLASSIFIED",HOTELS AND ACCOMMODATION
11-Sep-19,Housing Options,TRECARN HOTEL,282,"LODGING-HOTELS,MOTELS,RESORTS-NOT CLASSIFIED",HOTELS AND ACCOMMODATION
11-Sep-19,Housing Options,TRECARN HOTEL,282,"LODGING-HOTELS,MOTELS,RESORTS-NOT CLASSIFIED",HOTELS AND ACCOMMODATION
11-Sep-19,Housing Options,TRECARN HOTEL,282,"LODGING-HOTELS,MOTELS,RESORTS-NOT CLASSIFIED",HOTELS AND ACCOMMODATION
13-Sep-19,Housing Options,TRAVELODGE GB0000,239.97,TRAVELODGE,HOTELS AND ACCOMMODATION
12-Sep-19,Housing Options,TRECARN HOTEL,284,"LODGING-HOTELS,MOTELS,RESORTS-NOT CLASSIFIED",HOTELS AND ACCOMMODATION
13-Sep-19,Housing Options,TRECARN HOTEL,306,"LODGING-HOTELS,MOTELS,RESORTS-NOT CLASSIFIED",HOTELS AND ACCOMMODATION
13-Sep-19,Housing Options,ARGOS RETAIL GROUP,64.64,DISCOUNT STORES,GENERAL RETAIL AND WHOLESALE
13-Sep-19,Housing Options,WWW.ARGOS.CO.UK,161.95,DISCOUNT STORES,GENERAL RETAIL AND WHOLESALE
16-Sep-19,Housing Options,TRAVELODGE GB0000,474.93,TRAVELODGE,HOTELS AND ACCOMMODATION
16-Sep-19,Housing Options,TRECARN HOTEL,292,"LODGING-HOTELS,MOTELS,RESORTS-NOT CLASSIFIED",HOTELS AND ACCOMMODATION
16-Sep-19,Housing Options,TRECARN HOTEL,292,"LODGING-HOTELS,MOTELS,RESORTS-NOT CLASSIFIED",HOTELS AND ACCOMMODATION
18-Sep-19,Housing Options,PRESTON SANDS HOTEL,200,"LODGING-HOTELS,MOTELS,RESORTS-NOT CLASSIFIED",HOTELS AND ACCOMMODATION
18-Sep-19,Housing Options,ARGOS RETAIL GROUP,52.66,DISCOUNT STORES,GENERAL RETAIL AND WHOLESALE
17-Sep-19,Housing Options,TRECARN HOTEL,281,"LODGING-HOTELS,MOTELS,RESORTS-NOT CLASSIFIED",HOTELS AND ACCOMMODATION
17-Sep-19,Housing Options,TRECARN HOTEL,248,"LODGING-HOTELS,MOTELS,RESORTS-NOT CLASSIFIED",HOTELS AND ACCOMMODATION
17-Sep-19,Housing Options,TRECARN HOTEL,281,"LODGING-HOTELS,MOTELS,RESORTS-NOT CLASSIFIED",HOTELS AND ACCOMMODATION
17-Sep-19,Housing Options,TRECARN HOTEL,44,"LODGING-HOTELS,MOTELS,RESORTS-NOT CLASSIFIED",HOTELS AND ACCOMMODATION
17-Sep-19,Housing Options,TRECARN HOTEL,-160,"LODGING-HOTELS,MOTELS,RESORTS-NOT CLASSIFIED",HOTELS AND ACCOMMODATION
18-Sep-19,Housing Options,TRECARN HOTEL,289,"LODGING-HOTELS,MOTELS,RESORTS-NOT CLASSIFIED",HOTELS AND ACCOMMODATION
18-Sep-19,Housing Options,TRECARN HOTEL,289,"LODGING-HOTELS,MOTELS,RESORTS-NOT CLASSIFIED",HOTELS AND ACCOMMODATION
18-Sep-19,Housing Options,TRECARN HOTEL,289,"LODGING-HOTELS,MOTELS,RESORTS-NOT CLASSIFIED",HOTELS AND ACCOMMODATION
18-Sep-19,Housing Options,TRECARN HOTEL,289,"LODGING-HOTELS,MOTELS,RESORTS-NOT CLASSIFIED",HOTELS AND ACCOMMODATION
18-Sep-19,Housing Options,TRECARN HOTEL,289,"LODGING-HOTELS,MOTELS,RESORTS-NOT CLASSIFIED",HOTELS AND ACCOMMODATION
19-Sep-19,Housing Options,TRECARN HOTEL,294,"LODGING-HOTELS,MOTELS,RESORTS-NOT CLASSIFIED",HOTELS AND ACCOMMODATION
20-Sep-19,Housing Options,TRECARN HOTEL,286,"LODGING-HOTELS,MOTELS,RESORTS-NOT CLASSIFIED",HOTELS AND ACCOMMODATION
21-Sep-19,Housing Options,NATIONAL EXPRESS LIMITED,33.6,BUS LINES,TRAVEL
23-Sep-19,Housing Options,TRECARN HOTEL,289,"LODGING-HOTELS,MOTELS,RESORTS-NOT CLASSIFIED",HOTELS AND ACCOMMODATION
23-Sep-19,Housing Options,TRECARN HOTEL,324,"LODGING-HOTELS,MOTELS,RESORTS-NOT CLASSIFIED",HOTELS AND ACCOMMODATION
24-Sep-19,Housing Options,TRECARN HOTEL,296,"LODGING-HOTELS,MOTELS,RESORTS-NOT CLASSIFIED",HOTELS AND ACCOMMODATION
24-Sep-19,Housing Options,TRECARN HOTEL,296,"LODGING-HOTELS,MOTELS,RESORTS-NOT CLASSIFIED",HOTELS AND ACCOMMODATION
25-Sep-19,Housing Options,TRECARN HOTEL,260,"LODGING-HOTELS,MOTELS,RESORTS-NOT CLASSIFIED",HOTELS AND ACCOMMODATION
25-Sep-19,Housing Options,TRECARN HOTEL,260,"LODGING-HOTELS,MOTELS,RESORTS-NOT CLASSIFIED",HOTELS AND ACCOMMODATION
25-Sep-19,Housing Options,TRECARN HOTEL,260,"LODGING-HOTELS,MOTELS,RESORTS-NOT CLASSIFIED",HOTELS AND ACCOMMODATION
25-Sep-19,Housing Options,TRECARN HOTEL,260,"LODGING-HOTELS,MOTELS,RESORTS-NOT CLASSIFIED",HOTELS AND ACCOMMODATION
25-Sep-19,Housing Options,TRECARN HOTEL,260,"LODGING-HOTELS,MOTELS,RESORTS-NOT CLASSIFIED",HOTELS AND ACCOMMODATION
27-Sep-19,Housing Options,TRAVELODGE GB0000,192.96,TRAVELODGE,HOTELS AND ACCOMMODATION
26-Sep-19,Housing Options,TRECARN HOTEL,263,"LODGING-HOTELS,MOTELS,RESORTS-NOT CLASSIFIED",HOTELS AND ACCOMMODATION
27-Sep-19,Housing Options,TRECARN HOTEL,134,"LODGING-HOTELS,MOTELS,RESORTS-NOT CLASSIFIED",HOTELS AND ACCOMMODATION
30-Sep-19,Housing Options,TRECARN HOTEL,236,"LODGING-HOTELS,MOTELS,RESORTS-NOT CLASSIFIED",HOTELS AND ACCOMMODATION
30-Sep-19,Housing Options,TRECARN HOTEL,236,"LODGING-HOTELS,MOTELS,RESORTS-NOT CLASSIFIED",HOTELS AND ACCOMMODATION
01-Oct-19,Housing Options,TRECARN HOTEL,239,"LODGING-HOTELS,MOTELS,RESORTS-NOT CLASSIFIED",HOTELS AND ACCOMMODATION
01-Oct-19,Housing Options,TRECARN HOTEL,239,"LODGING-HOTELS,MOTELS,RESORTS-NOT CLASSIFIED",HOTELS AND ACCOMMODATION
01-Oct-19,Housing Options,TRECARN HOTEL,34,"LODGING-HOTELS,MOTELS,RESORTS-NOT CLASSIFIED",HOTELS AND ACCOMMODATION
03-Oct-19,Housing Options,TRAVELODGE GB0000,255.93,TRAVELODGE,HOTELS AND ACCOMMODATION
02-Oct-19,Housing Options,TRECARN HOTEL,234,"LODGING-HOTELS,MOTELS,RESORTS-NOT CLASSIFIED",HOTELS AND ACCOMMODATION
02-Oct-19,Housing Options,TRECARN HOTEL,34,"LODGING-HOTELS,MOTELS,RESORTS-NOT CLASSIFIED",HOTELS AND ACCOMMODATION
02-Oct-19,Housing Options,TRECARN HOTEL,234,"LODGING-HOTELS,MOTELS,RESORTS-NOT CLASSIFIED",HOTELS AND ACCOMMODATION
02-Oct-19,Housing Options,TRECARN HOTEL,234,"LODGING-HOTELS,MOTELS,RESORTS-NOT CLASSIFIED",HOTELS AND ACCOMMODATION
02-Oct-19,Housing Options,TRECARN HOTEL,234,"LODGING-HOTELS,MOTELS,RESORTS-NOT CLASSIFIED",HOTELS AND ACCOMMODATION
06-Sep-19,Financial Services - Children,TRAINLINE,161.65,PASSENGER RAILWAYS,TRAVEL
06-Sep-19,Financial Services - Children,TRAINLINE,192.9,PASSENGER RAILWAYS,TRAVEL
06-Sep-19,Financial Services - Children,TRAVELODGE GB0000,47.99,TRAVELODGE,HOTELS AND ACCOMMODATION
09-Sep-19,Financial Services - Children,TRAVELODGE GB0000,59,TRAVELODGE,HOTELS AND ACCOMMODATION
09-Sep-19,Financial Services - Children,FLYBE       RIFL9O,173.53,"AIR CARRIERS, AIRLINES-NOT ELSEWHERE CLASSIFIED",TRAVEL
10-Sep-19,Financial Services - Children,PREMIER INN44013440,80,PREMIER TRAVEL INN,HOTELS AND ACCOMMODATION
10-Sep-19,Financial Services - Children,PREMIER INN44029180,111,PREMIER TRAVEL INN,HOTELS AND ACCOMMODATION
10-Sep-19,Financial Services - Children,PREMIER INN 44536035,73,PREMIER TRAVEL INN,HOTELS AND ACCOMMODATION
10-Sep-19,Financial Services - Children,PREMIER INN 44536880,68,PREMIER TRAVEL INN,HOTELS AND ACCOMMODATION
10-Sep-19,Financial Services - Children,FLYBE.COM   UJHUIL,207.41,"AIR CARRIERS, AIRLINES-NOT ELSEWHERE CLASSIFIED",TRAVEL
12-Sep-19,Financial Services - Children,TRAINLINE,64.5,PASSENGER RAILWAYS,TRAVEL
12-Sep-19,Financial Services - Children,TRAINLINE,68.5,PASSENGER RAILWAYS,TRAVEL
12-Sep-19,Financial Services - Children,TRAINLINE,68.5,PASSENGER RAILWAYS,TRAVEL
11-Sep-19,Financial Services - Children,PREMIER INN44521730,104,PREMIER TRAVEL INN,HOTELS AND ACCOMMODATION
11-Sep-19,Financial Services - Children,PREMIER INN44530345,67,PREMIER TRAVEL INN,HOTELS AND ACCOMMODATION
11-Sep-19,Financial Services - Children,PREMIER INN 44536880,68,PREMIER TRAVEL INN,HOTELS AND ACCOMMODATION
11-Sep-19,Financial Services - Children,PREMIER INN 44536685,67,PREMIER TRAVEL INN,HOTELS AND ACCOMMODATION
11-Sep-19,Financial Services - Children,FLYBE.COM   WX8NP8,222.41,"AIR CARRIERS, AIRLINES-NOT ELSEWHERE CLASSIFIED",TRAVEL
11-Sep-19,Financial Services - Children,FLYBE.COM   WXUOJ9,297.75,"AIR CARRIERS, AIRLINES-NOT ELSEWHERE CLASSIFIED",TRAVEL
12-Sep-19,Financial Services - Children,WWW.ARGOS.CO.UK,199.99,DISCOUNT STORES,GENERAL RETAIL AND WHOLESALE
13-Sep-19,Financial Services - Children,TRAINLINE,113.4,PASSENGER RAILWAYS,TRAVEL
12-Sep-19,Financial Services - Children,PREMIER INN44010470,3,PREMIER TRAVEL INN,HOTELS AND ACCOMMODATION
12-Sep-19,Financial Services - Children,PREMIER INN 44536860,780,PREMIER TRAVEL INN,HOTELS AND ACCOMMODATION
13-Sep-19,Financial Services - Children,BURY MBC /INTERNET,12,GOVERNMENT SERVICES-NOT ELSEWHERE CLASSIFIED,STATUTORY BODIES
13-Sep-19,Financial Services - Children,NATIONAL EXPRESS LIMITED,89,BUS LINES,TRAVEL
13-Sep-19,Financial Services - Children,PREMIER INN44013300,74,PREMIER TRAVEL INN,HOTELS AND ACCOMMODATION
13-Sep-19,Financial Services - Children,PREMIER INN44521255,75,PREMIER TRAVEL INN,HOTELS AND ACCOMMODATION
12-Sep-19,Financial Services - Children,PREMIER INN 44536880,-68,PREMIER TRAVEL INN,HOTELS AND ACCOMMODATION
16-Sep-19,Financial Services - Children,WWW.IKEA.COM,149,"EQUIP, FURNITURE, HOME FURNSHNGS STRS (EXCPT APPL)",GENERAL RETAIL AND WHOLESALE
16-Sep-19,Financial Services - Children,TRAINLINE,56.6,PASSENGER RAILWAYS,TRAVEL
17-Sep-19,Financial Services - Children,CURRYS ONLINE,913,ELECTRONIC SALES,GENERAL RETAIL AND WHOLESALE
17-Sep-19,Financial Services - Children,TORBAY COUNCIL - WEB,35,GOVERNMENT SERVICES-NOT ELSEWHERE CLASSIFIED,STATUTORY BODIES
18-Sep-19,Financial Services - Children,WWW.ARGOS.CO.UK,159.99,DISCOUNT STORES,GENERAL RETAIL AND WHOLESALE
18-Sep-19,Financial Services - Children,CITY DIRECT,40,SCHOOLS AND  EDUCATIONAL SVC-NOT ELSEWHERE CLASSIFIED,TRAINING AND EDUCATIONAL
18-Sep-19,Financial Services - Children,AMAZON PRIME*MA1354274 AM,7.99,DIRECT MARKETING-CONTINUITY/SUBSCRIPTION MERCHANTS,MAIL ORDER / DIRECT SELLING
19-Sep-19,Financial Services - Children,TRAINLINE,31.25,PASSENGER RAILWAYS,TRAVEL
19-Sep-19,Financial Services - Children,WWW.ARGOS.CO.UK,248,DISCOUNT STORES,GENERAL RETAIL AND WHOLESALE
19-Sep-19,Financial Services - Children,WWW.ARGOS.CO.UK,126.93,DISCOUNT STORES,GENERAL RETAIL AND WHOLESALE
19-Sep-19,Financial Services - Children,PREMIER INN44529760,180,PREMIER TRAVEL INN,HOTELS AND ACCOMMODATION
20-Sep-19,Financial Services - Children,MARINE HOLIDAY,199,CAMPGROUNDS AND TRAILER PARKS,LEISURE ACTIVITIES
20-Sep-19,Financial Services - Children,MARINE HOLIDAY,199,CAMPGROUNDS AND TRAILER PARKS,LEISURE ACTIVITIES
20-Sep-19,Financial Services - Children,PREMIER INN44015395,168,PREMIER TRAVEL INN,HOTELS AND ACCOMMODATION
20-Sep-19,Financial Services - Children,PREMIER INN44529760,-180,PREMIER TRAVEL INN,HOTELS AND ACCOMMODATION
23-Sep-19,Financial Services - Children,TRAVELODGE GB0000,57.99,TRAVELODGE,HOTELS AND ACCOMMODATION
23-Sep-19,Financial Services - Children,FLYBE.COM   RELDXS,237.13,"AIR CARRIERS, AIRLINES-NOT ELSEWHERE CLASSIFIED",TRAVEL
25-Sep-19,Financial Services - Children,TRAINLINE,212.5,PASSENGER RAILWAYS,TRAVEL
24-Sep-19,Financial Services - Children,PREMIER INN44018220,106,PREMIER TRAVEL INN,HOTELS AND ACCOMMODATION
27-Sep-19,Financial Services - Children,TRAINLINE,311.3,PASSENGER RAILWAYS,TRAVEL
26-Sep-19,Financial Services - Children,PREMIER INN44010775,74,PREMIER TRAVEL INN,HOTELS AND ACCOMMODATION
27-Sep-19,Financial Services - Children,PLUM LOCATIONS,171,"LODGING-HOTELS,MOTELS,RESORTS-NOT CLASSIFIED",HOTELS AND ACCOMMODATION
27-Sep-19,Financial Services - Children,JD SPORTS INTERNET,75.99,SPORTING GOODS STORES,GENERAL RETAIL AND WHOLESALE
27-Sep-19,Financial Services - Children,YARN MARKET HOTEL,108,"LODGING-HOTELS,MOTELS,RESORTS-NOT CLASSIFIED",HOTELS AND ACCOMMODATION
01-Oct-19,Financial Services - Children,TORBAY COUNCIL - WEB,11,GOVERNMENT SERVICES-NOT ELSEWHERE CLASSIFIED,STATUTORY BODIES
01-Oct-19,Financial Services - Children,TORBAY COUNCIL - WEB,35,GOVERNMENT SERVICES-NOT ELSEWHERE CLASSIFIED,STATUTORY BODIES
01-Oct-19,Financial Services - Children,PREMIER INN44512685,293,PREMIER TRAVEL INN,HOTELS AND ACCOMMODATION
17-Sep-19,Community Safety,TRECARN HOTEL,90,"LODGING-HOTELS,MOTELS,RESORTS-NOT CLASSIFIED",HOTELS AND ACCOMMODATION
19-Sep-19,Community Safety,TRECARN HOTEL,179,"LODGING-HOTELS,MOTELS,RESORTS-NOT CLASSIFIED",HOTELS AND ACCOMMODATION
23-Sep-19,Community Safety,GEN REGISTER OFFICE,45.25,GOVERNMENT SERVICES-NOT ELSEWHERE CLASSIFIED,STATUTORY BODIES
23-Sep-19,Community Safety,NAS SCOTLAND PEOPLE,18.35,GOVERNMENT SERVICES-NOT ELSEWHERE CLASSIFIED,STATUTORY BODIES
24-Sep-19,Community Safety,TRECARN HOTEL,39,"LODGING-HOTELS,MOTELS,RESORTS-NOT CLASSIFIED",HOTELS AND ACCOMMODATION
25-Sep-19,Community Safety,TRECARN HOTEL,37,"LODGING-HOTELS,MOTELS,RESORTS-NOT CLASSIFIED",HOTELS AND ACCOMMODATION
27-Sep-19,Community Safety,GEN REGISTER OFFICE,45.25,GOVERNMENT SERVICES-NOT ELSEWHERE CLASSIFIED,STATUTORY BODIES
27-Sep-19,Community Safety,GEN REGISTER OFFICE,45.25,GOVERNMENT SERVICES-NOT ELSEWHERE CLASSIFIED,STATUTORY BODIES
26-Sep-19,Community Safety,TRECARN HOTEL,34,"LODGING-HOTELS,MOTELS,RESORTS-NOT CLASSIFIED",HOTELS AND ACCOMMODATION
02-Oct-19,Building Control,AMZNMktplace,26.8,MISCELLANEOUS AND SPECIALTY RETAIL STORES,GENERAL RETAIL AND WHOLESALE
